Workbook

Sheet Muni (hidden)
A1: MUNICIPALITY NAME | B1: MUNICIPALITY NAME | C1: CODE | D1: COUNTY | E1: 2022 | F1: 2023 | G1: 2024 | H1: 3-YEAR AVERAGE | I1: SCHOOL | J1: UTILITY | L1: SCHOOL % | N1: Regional School Name
A2: Aberdeen Township | B2: =A2&", "&D2&" County" -> Aberdeen Township, Monmouth County | C2: 1330 | D2: Monmouth | E2: 2850322221 | F2: 3125890785 | G2: 3454220882 | H2: =AVERAGE(E2:G2) -> 3143477963
A3: Absecon City | B3: =A3&", "&D3&" County" -> Absecon City, Atlantic County | C3: 0101 | D3: Atlantic | E3: 857513986 | F3: 948766396 | G3: 1059538473 | H3: =AVERAGE(E3:G3) -> 955272951.7 | L3: 0 | N3: Black Horse Pike Regional School District
A4: Alexandria Township | B4: Alexandria Township, Hunterdon County | C4: 1001 | D4: Hunterdon | E4: 886478833 | F4: 963637307 | G4: 1023378027 | H4: 957831389 | I4: Type I | J4: Arena | L4: 0.025 | N4: Bordentown Regional School District
A5: Allamuchy Township | B5: Allamuchy Township, Warren County | C5: 2101 | D5: Warren | E5: 844022228 | F5: 908686619 | G5: 1004087945 | H5: 918932264 | I5: Type II | J5: Affordable Housing | L5: 0.03 | N5: Bridgewater-Raritan Regional School District
A6: Allendale Borough | B6: Allendale Borough, Bergen County | C6: 0201 | D6: Bergen | E6: 2075748594 | F6: 2210697687 | G6: 2448582994 | H6: 2245009758 | J6: Airport | L6: 0.035 | N6: Buena Regional School District
A7: Allenhurst Borough | B7: Allenhurst Borough, Monmouth County | C7: 1301 | D7: Monmouth | E7: 976186662 | F7: 1461222836 | G7: 1462314264 | H7: 1299907921 | J7: Beach | L7: 0.04 | N7: Caldwell-West Caldwell Consolidated School District
A8: Allentown Borough | B8: Allentown Borough, Monmouth County | C8: 1302 | D8: Monmouth | E8: 199377689 | F8: 247591026 | G8: 290113947 | H8: 245694220.7 | J8: Electric | N8: Carlstadt-East Rutherford Regional High School
A9: Alloway Township | B9: Alloway Township, Salem County | C9: 1701 | D9: Salem | E9: 331411333 | F9: 389360960 | G9: 406222772 | H9: 375665021.7 | J9: Golf Course | N9: Central Regional School District
A10: Alpha Borough | B10: Alpha Borough, Warren County | C10: 2102 | D10: Warren | E10: 242982939 | F10: 275308421 | G10: 315051334 | H10: 277780898 | J10: Harbor | N10: Chatham School District
A11: Alpine Borough | B11: Alpine Borough, Bergen County | C11: 0202 | D11: Bergen | E11: 1880436604 | F11: 2083185419 | G11: 2091566133 | H11: 2018396052 | J11: Ice Rink | N11: Chester Township Consolidated School District
A12: Andover Borough | B12: Andover Borough, Sussex County | C12: 1901 | D12: Sussex | E12: 83005193 | F12: 83403009 | G12: 94112207 | H12: 86840136.33 | J12: Marina | N12: Clearview Regional School District
A13: Andover Township | B13: Andover Township, Sussex County | C13: 1902 | D13: Sussex | E13: 869957194 | F13: 918694059 | G13: 1022235610 | H13: 936962287.7 | J13: Parking | N13: Clinton-Glen Gardner School District
A14: Asbury Park City | B14: Asbury Park City, Monmouth County | C14: 1303 | D14: Monmouth | E14: 2483123847 | F14: 2800143553 | G14: 3212152473 | H14: 2831806624 | J14: Recreation | N14: Cumberland Regional High School
A15: Atlantic City | B15: Atlantic City, Atlantic County | C15: 0102 | D15: Atlantic | E15: 3186835403 | F15: 3448065018 | G15: 3702839432 | H15: 3445913284 | J15: Sewer | N15: Delaware Valley Regional High School
A16: Atlantic County | B16: =A16 -> Atlantic County | C16: 0100 | D16: Atlantic | E16: 39369894998 | F16: 45466690306 | G16: 50966763923 | H16: 4.526778308e+10 | J16: Solid Waste | N16: Delsea Regional School District
A17: Atlantic Highlands Borough | B17: Atlantic Highlands Borough, Monmouth County | C17: 1304 | D17: Monmouth | E17: 1083114471 | F17: 1178354088 | G17: 1273730593 | H17: 1178399717 | J17: Swimming Pool | N17: East Windsor Regional School District
A18: Audubon Borough | B18: Audubon Borough, Camden County | C18: 0401 | D18: Camden | E18: 871758655 | F18: 978049415 | G18: 1055827842 | H18: 968545304 | J18: Water | N18: Eastern Camden County Regional High School
A19: Audubon Park Borough | B19: Audubon Park Borough, Camden County | C19: 0402 | D19: Camden | E19: 20722795 | F19: 20722795 | G19: 20722795 | H19: 20722795 | J19: Water & Sewer | N19: Flemington-Raritan Regional School District
A20: Avalon Borough | B20: Avalon Borough, Cape May County | C20: 0501 | D20: Cape May | E20: 14004552620 | F20: 15944352184 | G20: 17323253528 | H20: 1.575738611e+10 | J20: Other | N20: Freehold Regional High School District
A21: Avon-by-the-Sea Borough | B21: Avon-by-the-Sea Borough, Monmouth County | C21: 1305 | D21: Monmouth | E21: 1457074761 | F21: 1538744186 | G21: 1799980029 | H21: 1598599659 | N21: Gateway Regional School District
A22: Barnegat Light Borough | B22: Barnegat Light Borough, Ocean County | C22: 1501 | D22: Ocean | E22: 1330053342 | F22: 1717464338 | G22: 1979872907 | H22: 1675796862 | N22: Great Meadows Regional School District
A23: Barnegat Township | B23: Barnegat Township, Ocean County | C23: 1533 | D23: Ocean | E23: 3476713249 | F23: 4055988867 | G23: 4514819713 | H23: 4015840610 | N23: Greater Egg Harbor Regional High School
A24: Barrington Borough | B24: Barrington Borough, Camden County | C24: 0403 | D24: Camden | E24: 645158362 | F24: 739497459 | G24: 816895837 | H24: 733850552.7 | N24: Hanover Park Regional High School District
A25: Bass River Township | B25: Bass River Township, Burlington County | C25: 0301 | D25: Burlington | E25: 201767045 | F25: 225787922 | G25: 246997741 | H25: 224850902.7 | N25: Henry Hudson Regional High School
A26: Bay Head Borough | B26: Bay Head Borough, Ocean County | C26: 1502 | D26: Ocean | E26: 2183708948 | F26: 2457873223 | G26: 2859005640 | H26: 2500195937 | N26: High Point Regional High School
A27: Bayonne City | B27: Bayonne City, Hudson County | C27: 0901 | D27: Hudson | E27: 9054404667 | F27: 10189024075 | G27: 10833452449 | H27: 1.002562706e+10 | N27: Hopewell Valley Regional School District
A28: Beach Haven Borough | B28: Beach Haven Borough, Ocean County | C28: 1503 | D28: Ocean | E28: 3143620523 | F28: 3691558778 | G28: 4064535847 | H28: 3633238383 | N28: Hunterdon Central Regional High School
A29: Beachwood Borough | B29: Beachwood Borough, Ocean County | C29: 1504 | D29: Ocean | E29: 1176326812 | F29: 1337524365 | G29: 1476397187 | H29: 1330082788 | N29: Kingsway Regional School District
A30: Bedminster Township | B30: Bedminster Township, Somerset County | C30: 1801 | D30: Somerset | E30: 2619810530 | F30: 2677135694 | G30: 2733574308 | H30: 2676840177 | N30: Kittatinny Regional High School
A31: Belleville Township | B31: Belleville Township, Essex County | C31: 0701 | D31: Essex | E31: 3767732740 | F31: 4193145253 | G31: 4763242036 | H31: 4241373343 | N31: Lakeland Regional High School
A32: Bellmawr Borough | B32: Bellmawr Borough, Camden County | C32: 0404 | D32: Camden | E32: 888341649 | F32: 1016548427 | G32: 1093710823 | H32: 999533633 | N32: Lenape Regional High School District
A33: Belmar Borough | B33: Belmar Borough, Monmouth County | C33: 1306 | D33: Monmouth | E33: 2360426956 | F33: 2593724280 | G33: 2920742698 | H33: 2624964645 | N33: Lenape Valley Regional High School
A34: Belvidere Town | B34: Belvidere Town, Warren County | C34: 2103 | D34: Warren | E34: 235502827 | F34: 232850755 | G34: 276130030 | H34: 248161204 | N34: Long Beach Island Consolidated School District
A35: Bergen County | B35: =A35 -> Bergen County | C35: 0200 | D35: Bergen | E35: 209970578578 | F35: 226848381422 | G35: 244730595430 | H35: 2.271831851e+11 | N35: Lower Cape May Regional High School
A36: Bergenfield Borough | B36: Bergenfield Borough, Bergen County | C36: 0203 | D36: Bergen | E36: 3777567913 | F36: 4090610419 | G36: 4644599932 | H36: 4170926088 | N36: Mainland Regional High School
A37: Berkeley Heights Township | B37: Berkeley Heights Township, Union County | C37: 2001 | D37: Union | E37: 3694801857 | F37: 3986580542 | G37: 4416365516 | H37: 4032582638 | N37: Manalapan-Englishtown Regional School District
A38: Berkeley Township | B38: Berkeley Township, Ocean County | C38: 1505 | D38: Ocean | E38: 7578702079 | F38: 8530244253 | G38: 9321660273 | H38: 8476868868 | N38: Matawan-Aberdeen Regional School District
A39: Berlin Borough | B39: Berlin Borough, Camden County | C39: 0405 | D39: Camden | E39: 897129078 | F39: 994312789 | G39: 1106959840 | H39: 999467235.7 | N39: Monmouth Regional High School District
A40: Berlin Township | B40: Berlin Township, Camden County | C40: 0406 | D40: Camden | E40: 787725316 | F40: 883385665 | G40: 999120762 | H40: 890077247.7 | N40: Montgomery Township School District
A41: Bernards Township | B41: Bernards Township, Somerset County | C41: 1802 | D41: Somerset | E41: 7719623229 | F41: 8106165936 | G41: 8987168496 | H41: 8270985887 | N41: Morris Hills Regional School District
A42: Bernardsville Borough | B42: Bernardsville Borough, Somerset County | C42: 1803 | D42: Somerset | E42: 2373089707 | F42: 2492803825 | G42: 2673605337 | H42: 2513166290 | N42: Morris Regional School District
A43: Bethlehem Township | B43: Bethlehem Township, Hunterdon County | C43: 1002 | D43: Hunterdon | E43: 670818909 | F43: 734739111 | G43: 771491820 | H43: 725683280 | N43: New Hanover Consolidated School District
A44: Beverly City | B44: Beverly City, Burlington County | C44: 0302 | D44: Burlington | E44: 148433721 | F44: 162041012 | G44: 191818704 | H44: 167431145.7 | N44: North Hunterdon Regional High School
A45: Blairstown Township | B45: Blairstown Township, Warren County | C45: 2104 | D45: Warren | E45: 857181243 | F45: 961040808 | G45: 1022147488 | H45: 946789846.3 | N45: North Warren Regional School District
A46: Bloomfield Township | B46: Bloomfield Township, Essex County | C46: 0702 | D46: Essex | E46: 6171437304 | F46: 6871381125 | G46: 7676477513 | H46: 6906431981 | N46: Northern Burlington County Regional School District
A47: Bloomingdale Borough | B47: Bloomingdale Borough, Passaic County | C47: 1601 | D47: Passaic | E47: 1061427576 | F47: 1168897016 | G47: 1231240675 | H47: 1153855089 | N47: Northern Highlands Regional High School
A48: Bloomsbury Borough | B48: Bloomsbury Borough, Hunterdon County | C48: 1003 | D48: Hunterdon | E48: 110197152 | F48: 119859250 | G48: 134959218 | H48: 121671873.3 | N48: Northern Valley Regional High School
A49: Bogota Borough | B49: Bogota Borough, Bergen County | C49: 0204 | D49: Bergen | E49: 1006723497 | F49: 1080136333 | G49: 1259146116 | H49: 1115335315 | N49: Ocean Township Consolidated School District
A50: Boonton Town | B50: Boonton Town, Morris County | C50: 1401 | D50: Morris | E50: 1427416850 | F50: 1522262969 | G50: 1626029994 | H50: 1525236604 | N50: Pascack Valley Regional High School
A51: Boonton Township | B51: Boonton Township, Morris County | C51: 1402 | D51: Morris | E51: 1045930997 | F51: 1084469393 | G51: 1123625515 | H51: 1084675302 | N51: Passaic County Manchester Regional High School
A52: Bordentown City | B52: Bordentown City, Burlington County | C52: 0303 | D52: Burlington | E52: 424447636 | F52: 476574659 | G52: 532796716 | H52: 477939670.3 | N52: Passaic Valley Regional High School
A53: Bordentown Township | B53: Bordentown Township, Burlington County | C53: 0304 | D53: Burlington | E53: 1733071385 | F53: 2079807658 | G53: 2214803718 | H53: 2009227587 | N53: Penns Grove-Carneys Point Regional School District
A54: Bound Brook Borough | B54: Bound Brook Borough, Somerset County | C54: 1804 | D54: Somerset | E54: 1063530794 | F54: 1168381736 | G54: 1275972393 | H54: 1169294974 | N54: Pinelands Regional School Distrct
A55: Bradley Beach Borough | B55: Bradley Beach Borough, Monmouth County | C55: 1307 | D55: Monmouth | E55: 1902491377 | F55: 2119677824 | G55: 2330816023 | H55: 2117661741 | N55: Ramapo Indian Hills Regional High School
A56: Branchburg Township | B56: Branchburg Township, Somerset County | C56: 1805 | D56: Somerset | E56: 4223944552 | F56: 4239021623 | G56: 4700796858 | H56: 4387921011 | N56: Rancocas Valley Regional High School
A57: Branchville Borough | B57: Branchville Borough, Sussex County | C57: 1903 | D57: Sussex | E57: 142151764 | F57: 148681381 | G57: 156956197 | H57: 149263114 | N57: Red Bank Regional High School
A58: Brick Township | B58: Brick Township, Ocean County | C58: 1506 | D58: Ocean | E58: 14412265880 | F58: 16132824304 | G58: 17870579588 | H58: 1.613855659e+10 | N58: River Dell Regional School District
A59: Bridgeton City | B59: Bridgeton City, Cumberland County | C59: 0601 | D59: Cumberland | E59: 605482544 | F59: 697739822 | G59: 767782186 | H59: 690334850.7 | N59: Rumson-Fair Haven Regional High School
A60: Bridgewater Township | B60: Bridgewater Township, Somerset County | C60: 1806 | D60: Somerset | E60: 11069312621 | F60: 11053771638 | G60: 12110063913 | H60: 1.141104939e+10 | N60: Sandyston-Walpack Consolidated School District
A61: Brielle Borough | B61: Brielle Borough, Monmouth County | C61: 1308 | D61: Monmouth | E61: 2130638124 | F61: 2295564906 | G61: 2490323456 | H61: 2305508829 | N61: Scotch Plains-Fanwood Regional School District
A62: Brigantine City | B62: Brigantine City, Atlantic County | C62: 0103 | D62: Atlantic | E62: 4627787141 | F62: 5471013223 | G62: 6290058665 | H62: 5462953010 | N62: Shore Regional High School
A63: Brooklawn Borough | B63: Brooklawn Borough, Camden County | C63: 0407 | D63: Camden | E63: 151200779 | F63: 160453622 | G63: 185932264 | H63: 165862221.7 | N63: Somerset Hills Regional School District
A64: Buena Borough | B64: Buena Borough, Atlantic County | C64: 0104 | D64: Atlantic | E64: 323368923 | F64: 338398603 | G64: 366000877 | H64: 342589467.7 | N64: South Hunterdon Regional School District
A65: Buena Vista Township | B65: Buena Vista Township, Atlantic County | C65: 0105 | D65: Atlantic | E65: 687486042 | F65: 789443221 | G65: 893600730 | H65: 790176664.3 | N65: South Orange-Maplewood Consolidated School District
A66: Burlington City | B66: Burlington City, Burlington County | C66: 0305 | D66: Burlington | E66: 758885355 | F66: 793930242 | G66: 900162584 | H66: 817659393.7 | N66: Southern Regional School District
A67: Burlington County | B67: =A67 -> Burlington County | C67: 0300 | D67: Burlington | E67: 57127482908 | F67: 63683279578 | G67: 70348911191 | H67: =AVERAGE(E67:G67) -> 6.371989123e+10 | N67: Spotswood-Helmetta Consolidated School District
A68: Burlington Township | B68: =A68&", "&D68&" County" -> Burlington Township, Burlington County | C68: 0306 | D68: Burlington | E68: 3128363852 | F68: 3489804622 | G68: 3698860649 | H68: 3439009708 | N68: Sterling High School
A69: Butler Borough | B69: Butler Borough, Morris County | C69: 1403 | D69: Morris | E69: 1192740368 | F69: 1291226850 | G69: 1412028759 | H69: 1298665326 | N69: Sussex-Wantage Regional School Distrct
A70: Byram Township | B70: Byram Township, Sussex County | C70: 1904 | D70: Sussex | E70: 1183622861 | F70: 1286876250 | G70: 1442348511 | H70: 1304282541 | N70: Swedesboro-Woolwich Consolidated School District
A71: Caldwell Borough | B71: Caldwell Borough, Essex County | C71: 0703 | D71: Essex | E71: 1343058649 | F71: 1423615175 | G71: 1514927142 | H71: 1427200322 | N71: Tinton Falls School District
A72: Califon Borough | B72: Califon Borough, Hunterdon County | C72: 1004 | D72: Hunterdon | E72: 171387207 | F72: 180957862 | G72: 199646463 | H72: 183997177.3 | N72: Toms River Regional School District
A73: Camden City | B73: Camden City, Camden County | C73: 0408 | D73: Camden | E73: 2052938017 | F73: 2259409836 | G73: 2597514395 | H73: 2303287416 | N73: Upper Freehold Regional School District
A74: Camden County | B74: =A74 -> Camden County | C74: 0400 | D74: Camden | E74: 47431609946 | F74: 53053211756 | G74: 58416778243 | H74: 5.296719998e+10 | N74: Wallkill Valley Regional High School
A75: Cape May City | B75: Cape May City, Cape May County | C75: 0502 | D75: Cape May | E75: 4378643600 | F75: 4773553004 | G75: 5582839985 | H75: 4911678863 | N75: Warren Hills Regional School District
A76: Cape May County | B76: =A76 -> Cape May County | C76: 0500 | D76: Cape May | E76: 76162736537 | F76: 86606142936 | G76: 96029950746 | H76: 8.626627674e+10 | N76: Watchung Hills Regional High School
A77: Cape May Point Borough | B77: Cape May Point Borough, Cape May County | C77: 0503 | D77: Cape May | E77: 699587776 | F77: 789960849 | G77: 903464898 | H77: 797671174.3 | N77: West Essex Regional School District
A78: Carlstadt Borough | B78: Carlstadt Borough, Bergen County | C78: 0205 | D78: Bergen | E78: 2813928643 | F78: 3275361005 | G78: 3425367067 | H78: 3171552238 | N78: West Morris Regional High School District
A79: Carneys Point Township | B79: Carneys Point Township, Salem County | C79: 1713 | D79: Salem | E79: 780458534 | F79: 915131679 | G79: 976934855 | H79: 890841689.3 | N79: West Windsor-Plainsboro Regional School District
A80: Carteret Borough | B80: Carteret Borough, Middlesex County | C80: 1201 | D80: Middlesex | E80: 3547417272 | F80: 3795328475 | G80: 4409759591 | H80: 3917501779 | N80: Westwood Regional School District
A81: Cedar Grove Township | B81: Cedar Grove Township, Essex County | C81: 0704 | D81: Essex | E81: 2657620616 | F81: 2807894626 | G81: 3018736139 | H81: 2828083794 | N81: Woodstown-Pilesgrove Regional School District
A82: Chatham Borough | B82: Chatham Borough, Morris County | C82: 1404 | D82: Morris | E82: 2875548452 | F82: 3163864151 | G82: 3437204647 | H82: 3158872417
A83: Chatham Township | B83: Chatham Township, Morris County | C83: 1405 | D83: Morris | E83: 4086904522 | F83: 4443871977 | G83: 4792635696 | H83: 4441137398
A84: Cherry Hill Township | B84: Cherry Hill Township, Camden County | C84: 0409 | D84: Camden | E84: 10624165627 | F84: 12398913655 | G84: 13351620736 | H84: 12124900006
A85: Chesilhurst Borough | B85: Chesilhurst Borough, Camden County | C85: 0410 | D85: Camden | E85: 102275751 | F85: 111521158 | G85: 123622531 | H85: 112473146.7
A86: Chester Borough | B86: Chester Borough, Morris County | C86: 1406 | D86: Morris | E86: 436300822 | F86: 468024010 | G86: 550234539 | H86: 484853123.7
A87: Chester Township | B87: Chester Township, Morris County | C87: 1407 | D87: Morris | E87: 2015694740 | F87: 2149044151 | G87: 2295589072 | H87: 2153442654
A88: Chesterfield Township | B88: Chesterfield Township, Burlington County | C88: 0307 | D88: Burlington | E88: 1004896673 | F88: 1110530771 | G88: 1242501976 | H88: 1119309807
A89: Cinnaminson Township | B89: Cinnaminson Township, Burlington County | C89: 0308 | D89: Burlington | E89: 2270771213 | F89: 2451410291 | G89: 2806809471 | H89: 2509663658
A90: Clark Township | B90: Clark Township, Union County | C90: 2002 | D90: Union | E90: 3351679345 | F90: 3613517045 | G90: 3902262009 | H90: 3622486133
A91: Clayton Borough | B91: Clayton Borough, Gloucester County | C91: 0801 | D91: Gloucester | E91: 621124408 | F91: 714788369 | G91: 794209275 | H91: 710040684
A92: Clementon Borough | B92: Clementon Borough, Camden County | C92: 0411 | D92: Camden | E92: 308976244 | F92: 339999643 | G92: 379722091 | H92: 342899326
A93: Cliffside Park Borough | B93: Cliffside Park Borough, Bergen County | C93: 0206 | D93: Bergen | E93: 3894436085 | F93: 4184585494 | G93: 4454710634 | H93: 4177910738
A94: Clifton City | B94: Clifton City, Passaic County | C94: 1602 | D94: Passaic | E94: 12708234847 | F94: 13903318841 | G94: 14888942920 | H94: 1.383349887e+10
A95: Clinton Town | B95: Clinton Town, Hunterdon County | C95: 1005 | D95: Hunterdon | E95: 460622796 | F95: 486821483 | G95: 524955541 | H95: 490799940
A96: Clinton Township | B96: Clinton Township, Hunterdon County | C96: 1006 | D96: Hunterdon | E96: 2412609080 | F96: 2522802317 | G96: 2669497831 | H96: 2534969743
A97: Closter Borough | B97: Closter Borough, Bergen County | C97: 0207 | D97: Bergen | E97: 2578912797 | F97: 2889785706 | G97: 3103792686 | H97: 2857497063
A98: Collingswood Borough | B98: Collingswood Borough, Camden County | C98: 0412 | D98: Camden | E98: 1376948030 | F98: 1506270157 | G98: 1693660277 | H98: 1525626155
A99: Colts Neck Township | B99: Colts Neck Township, Monmouth County | C99: 1309 | D99: Monmouth | E99: 3538289485 | F99: 3861160004 | G99: 4183856336 | H99: 3861101942
A100: Commercial Township | B100: Commercial Township, Cumberland County | C100: 0602 | D100: Cumberland | E100: 279337832 | F100: 292945969 | G100: 343901889 | H100: 305395230
A101: Corbin City | B101: Corbin City, Atlantic County | C101: 0106 | D101: Atlantic | E101: 61468788 | F101: 76293205 | G101: 84721192 | H101: 74161061.67
A102: Cranbury Township | B102: Cranbury Township, Middlesex County | C102: 1202 | D102: Middlesex | E102: 2143541042 | F102: 2361768135 | G102: 2480055472 | H102: 2328454883
A103: Cranford Township | B103: Cranford Township, Union County | C103: 2003 | D103: Union | E103: 5176117447 | F103: 5338289348 | G103: 5796867147 | H103: 5437091314
A104: Cresskill Borough | B104: Cresskill Borough, Bergen County | C104: 0208 | D104: Bergen | E104: 2698366212 | F104: 3085229805 | G104: 3392125714 | H104: 3058573910
A105: Cumberland County | B105: =A105 -> Cumberland County | C105: 0600 | D105: Cumberland | E105: 10468902929 | F105: 11375390254 | G105: 12455766844 | H105: 1.143335334e+10
A106: Deal Borough | B106: Deal Borough, Monmouth County | C106: 1310 | D106: Monmouth | E106: 3856077700 | F106: 4425971258 | G106: 5270210985 | H106: 4517419981
A107: Deerfield Township | B107: Deerfield Township, Cumberland County | C107: 0603 | D107: Cumberland | E107: 239496648 | F107: 268784679 | G107: 293915062 | H107: 267398796.3
A108: Delanco Township | B108: Delanco Township, Burlington County | C108: 0309 | D108: Burlington | E108: 526998353 | F108: 612147602 | G108: 692733529 | H108: 610626494.7
A109: Delaware Township | B109: Delaware Township, Hunterdon County | C109: 1007 | D109: Hunterdon | E109: 1027924713 | F109: 1091507234 | G109: 1202897387 | H109: 1107443111
A110: Delran Township | B110: Delran Township, Burlington County | C110: 0310 | D110: Burlington | E110: 1952619216 | F110: 2140620361 | G110: 2404415684 | H110: 2165885087
A111: Demarest Borough | B111: Demarest Borough, Bergen County | C111: 0209 | D111: Bergen | E111: 1764073944 | F111: 1991512536 | G111: 2159431748 | H111: 1971672743
A112: Dennis Township | B112: Dennis Township, Cape May County | C112: 0504 | D112: Cape May | E112: 1144679944 | F112: 1194542557 | G112: 1394241931 | H112: 1244488144
A113: Denville Township | B113: Denville Township, Morris County | C113: 1408 | D113: Morris | E113: 3753403293 | F113: 4176428147 | G113: 4436329291 | H113: 4122053577
A114: Deptford Township | B114: Deptford Township, Gloucester County | C114: 0802 | D114: Gloucester | E114: 3480005483 | F114: 3839093607 | G114: 4161033016 | H114: 3826710702
A115: Dover Town | B115: Dover Town, Morris County | C115: 1409 | D115: Morris | E115: 1655879588 | F115: 1773345469 | G115: 1903239948 | H115: 1777488335
A116: Downe Township | B116: Downe Township, Cumberland County | C116: 0604 | D116: Cumberland | E116: 153253163 | F116: 175269641 | G116: 187878098 | H116: 172133634
A117: Dumont Borough | B117: Dumont Borough, Bergen County | C117: 0210 | D117: Bergen | E117: 2562851234 | F117: 2699257789 | G117: 3009698560 | H117: 2757269194
A118: Dunellen Borough | B118: Dunellen Borough, Middlesex County | C118: 1203 | D118: Middlesex | E118: 847014639 | F118: 898876382 | G118: 1009337352 | H118: 918409457.7
A119: Eagleswood Township | B119: Eagleswood Township, Ocean County | C119: 1508 | D119: Ocean | E119: 288418682 | F119: 313762636 | G119: 354250258 | H119: 318810525.3
A120: East Amwell Township | B120: East Amwell Township, Hunterdon County | C120: 1008 | D120: Hunterdon | E120: 857823319 | F120: 929273842 | G120: 989926561 | H120: 925674574
A121: East Brunswick Township | B121: East Brunswick Township, Middlesex County | C121: 1204 | D121: Middlesex | E121: 8625315659 | F121: 9423430713 | G121: 10228404408 | H121: 9425716927
A122: East Greenwich Township | B122: East Greenwich Township, Gloucester County | C122: 0803 | D122: Gloucester | E122: 1545546296 | F122: 1701321710 | G122: 1900721084 | H122: 1715863030
A123: East Hanover Township | B123: East Hanover Township, Morris County | C123: 1410 | D123: Morris | E123: 3518596714 | F123: 3928770212 | G123: 4260656537 | H123: 3902674488
A124: East Newark Borough | B124: East Newark Borough, Hudson County | C124: 0902 | D124: Hudson | E124: 247552218 | F124: 269681642 | G124: 294081922 | H124: 270438594
A125: East Orange City | B125: East Orange City, Essex County | C125: 0705 | D125: Essex | E125: 4988695994 | F125: 5569702547 | G125: 5516844950 | H125: 5358414497
A126: East Rutherford Borough | B126: East Rutherford Borough, Bergen County | C126: 0212 | D126: Bergen | E126: 2614492164 | F126: 2919057917 | G126: 3012307051 | H126: 2848619044
A127: East Windsor Township | B127: East Windsor Township, Mercer County | C127: 1101 | D127: Mercer | E127: 3571086108 | F127: 4136956012 | G127: 4435112691 | H127: 4047718270
A128: Eastampton Township | B128: Eastampton Township, Burlington County | C128: 0311 | D128: Burlington | E128: 656491383 | F128: 753327822 | G128: 934675805 | H128: 781498336.7
A129: Eatontown Borough | B129: Eatontown Borough, Monmouth County | C129: 1311 | D129: Monmouth | E129: 3301396672 | F129: 3470507206 | G129: 3286285020 | H129: 3352729633
A130: Edgewater Borough | B130: Edgewater Borough, Bergen County | C130: 0213 | D130: Bergen | E130: 4029455922 | F130: 4526305849 | G130: 4753649917 | H130: 4436470563
A131: Edgewater Park Township | B131: =A131&", "&D131&" County" -> Edgewater Park Township, Burlington County | C131: 0312 | D131: Burlington | E131: 712203548 | F131: 863425598 | G131: 960738364 | H131: =AVERAGE(E131:G131) -> 845455836.7
A132: Edison Township | B132: Edison Township, Middlesex County | C132: 1205 | D132: Middlesex | E132: 19261135029 | F132: 20214871436 | G132: 21121959282 | H132: 2.019932192e+10
A133: Egg Harbor City | B133: Egg Harbor City, Atlantic County | C133: 0107 | D133: Atlantic | E133: 254884561 | F133: 312127975 | G133: 360987357 | H133: 309333297.7
A134: Egg Harbor Township | B134: Egg Harbor Township, Atlantic County | C134: 0108 | D134: Atlantic | E134: 5081708795 | F134: 5752822407 | G134: 6189084492 | H134: 5674538565
A135: Elizabeth City | B135: Elizabeth City, Union County | C135: 2004 | D135: Union | E135: 12157693108 | F135: 13381468661 | G135: 15027347740 | H135: 1.352216984e+10
A136: Elk Township | B136: Elk Township, Gloucester County | C136: 0804 | D136: Gloucester | E136: 474382607 | F136: 539086768 | G136: 606674727 | H136: 540048034
A137: Elmer Borough | B137: Elmer Borough, Salem County | C137: 1702 | D137: Salem | E137: 122526743 | F137: 135096460 | G137: 143104905 | H137: 133576036
A138: Elmwood Park Borough | B138: Elmwood Park Borough, Bergen County | C138: 0211 | D138: Bergen | E138: 2683573512 | F138: 2845270836 | G138: 3231520728 | H138: 2920121692
A139: Elsinboro Township | B139: Elsinboro Township, Salem County | C139: 1703 | D139: Salem | E139: 113749458 | F139: 129550006 | G139: 141733570 | H139: 128344344.7
A140: Emerson Borough | B140: Emerson Borough, Bergen County | C140: 0214 | D140: Bergen | E140: 1512844503 | F140: 1612848348 | G140: 1717422876 | H140: 1614371909
A141: Englewood City | B141: Englewood City, Bergen County | C141: 0215 | D141: Bergen | E141: 5930371563 | F141: 6347412816 | G141: 6718299189 | H141: 6332027856
A142: Englewood Cliffs Borough | B142: Englewood Cliffs Borough, Bergen County | C142: 0216 | D142: Bergen | E142: 3895115495 | F142: 3990262873 | G142: 4136659844 | H142: 4007346071
A143: Englishtown Borough | B143: Englishtown Borough, Monmouth County | C143: 1312 | D143: Monmouth | E143: 317035903 | F143: 349323685 | G143: 393889211 | H143: 353416266.3
A144: Essex County | B144: =A144 -> Essex County | C144: 0700 | D144: Essex | E144: 106390647088 | F144: 123386100965 | G144: 137206848844 | H144: 1.223278656e+11
A145: Essex Fells Borough | B145: Essex Fells Borough, Essex County | C145: 0706 | D145: Essex | E145: 814155909 | F145: 806530708 | G145: 928995098 | H145: 849893905
A146: Estell Manor City | B146: Estell Manor City, Atlantic County | C146: 0109 | D146: Atlantic | E146: 202680573 | F146: 226780903 | G146: 246056925 | H146: 225172800.3
A147: Evesham Township | B147: Evesham Township, Burlington County | C147: 0313 | D147: Burlington | E147: 6487111047 | F147: 7113434233 | G147: 7990382787 | H147: 7196976022
A148: Ewing Township | B148: Ewing Township, Mercer County | C148: 1102 | D148: Mercer | E148: 3814358847 | F148: 4663047544 | G148: 4979701568 | H148: 4485702653
A149: Fair Haven Borough | B149: Fair Haven Borough, Monmouth County | C149: 1313 | D149: Monmouth | E149: 2382405571 | F149: 2530009229 | G149: 2753215206 | H149: 2555210002
A150: Fair Lawn Borough | B150: Fair Lawn Borough, Bergen County | C150: 0217 | D150: Bergen | E150: 6173269385 | F150: 6785784240 | G150: 7251802052 | H150: 6736951892
A151: Fairfield Township (Cumberland) | B151: Fairfield Township (Cumberland), Cumberland County | C151: 0605 | D151: Cumberland | E151: 319115935 | F151: 339377288 | G151: 362677659 | H151: 340390294
A152: Fairfield Township (Essex) | B152: Fairfield Township (Essex), Essex County | C152: 0707 | D152: Essex | E152: 3791394080 | F152: 4073199516 | G152: 4041014316 | H152: 3968535971
A153: Fairview Borough | B153: Fairview Borough, Bergen County | C153: 0218 | D153: Bergen | E153: 1729461478 | F153: 2005716536 | G153: 2082642192 | H153: 1939273402
A154: Fanwood Borough | B154: Fanwood Borough, Union County | C154: 2005 | D154: Union | E154: 1455076896 | F154: 1558034877 | G154: 1765601025 | H154: 1592904266
A155: Far Hills Borough | B155: Far Hills Borough, Somerset County | C155: 1807 | D155: Somerset | E155: 436111448 | F155: 430974809 | G155: 468853872 | H155: 445313376.3
A156: Farmingdale Borough | B156: Farmingdale Borough, Monmouth County | C156: 1314 | D156: Monmouth | E156: 205477655 | F156: 239025721 | G156: 275584505 | H156: 240029293.7
A157: Fieldsboro Borough | B157: Fieldsboro Borough, Burlington County | C157: 0314 | D157: Burlington | E157: 61086057 | F157: 71603647 | G157: 71342709 | H157: 68010804.33
A158: Flemington Borough | B158: Flemington Borough, Hunterdon County | C158: 1009 | D158: Hunterdon | E158: 495928762 | F158: 531454564 | G158: 564823260 | H158: 530735528.7
A159: Florence Township | B159: Florence Township, Burlington County | C159: 0315 | D159: Burlington | E159: 1398712681 | F159: 1541480120 | G159: 1548771666 | H159: 1496321489
A160: Florham Park Borough | B160: Florham Park Borough, Morris County | C160: 1411 | D160: Morris | E160: 3851290705 | F160: 4518849829 | G160: 5127585383 | H160: 4499241972
A161: Folsom Borough | B161: Folsom Borough, Atlantic County | C161: 0110 | D161: Atlantic | E161: 200804528 | F161: 223381576 | G161: 252013137 | H161: 225399747
A162: Fort Lee Borough | B162: Fort Lee Borough, Bergen County | C162: 0219 | D162: Bergen | E162: 7230135145 | F162: 9135096063 | G162: 9936766355 | H162: 8767332521
A163: Frankford Township | B163: Frankford Township, Sussex County | C163: 1905 | D163: Sussex | E163: 915135857 | F163: 1007380475 | G163: 1057691185 | H163: 993402505.7
A164: Franklin Borough | B164: Franklin Borough, Sussex County | C164: 1906 | D164: Sussex | E164: 539168794 | F164: 566942654 | G164: 663564470 | H164: 589891972.7
A165: Franklin Lakes Borough | B165: Franklin Lakes Borough, Bergen County | C165: 0220 | D165: Bergen | E165: 4857264574 | F165: 5512561920 | G165: 6174942566 | H165: 5514923020
A166: Franklin Township (Gloucester) | B166: Franklin Township (Gloucester), Gloucester County | C166: 0805 | D166: Gloucester | E166: 1645017544 | F166: 1852696189 | G166: 2012378430 | H166: 1836697388
A167: Franklin Township (Hunterdon) | B167: Franklin Township (Hunterdon), Hunterdon County | C167: 1010 | D167: Hunterdon | E167: 573010081 | F167: 603970195 | G167: 617699944 | H167: 598226740
A168: Franklin Township (Somerset) | B168: Franklin Township (Somerset), Somerset County | C168: 1808 | D168: Somerset | E168: 13418238386 | F168: 14340058308 | G168: 15191389763 | H168: 1.431656215e+10
A169: Franklin Township (Warren) | B169: Franklin Township (Warren), Warren County | C169: 2105 | D169: Warren | E169: 492234006 | F169: 526525203 | G169: 552550273 | H169: 523769827.3
A170: Fredon Township | B170: Fredon Township, Sussex County | C170: 1907 | D170: Sussex | E170: 491630018 | F170: 552959344 | G170: 596796129 | H170: 547128497
A171: Freehold Borough | B171: Freehold Borough, Monmouth County | C171: 1315 | D171: Monmouth | E171: 1389546789 | F171: 1450135512 | G171: 1572760716 | H171: 1470814339
A172: Freehold Township | B172: Freehold Township, Monmouth County | C172: 1316 | D172: Monmouth | E172: 8361314337 | F172: 9489611917 | G172: 9685268921 | H172: 9178731725
A173: Frelinghuysen Township | B173: Frelinghuysen Township, Warren County | C173: 2106 | D173: Warren | E173: 331783941 | F173: 361086072 | G173: 373769171 | H173: 355546394.7
A174: Frenchtown Borough | B174: Frenchtown Borough, Hunterdon County | C174: 1011 | D174: Hunterdon | E174: 199642878 | F174: 220283498 | G174: 250443931 | H174: 223456769
A175: Galloway Township | B175: Galloway Township, Atlantic County | C175: 0111 | D175: Atlantic | E175: 3597061147 | F175: 4048520318 | G175: 4537166018 | H175: 4060915828
A176: Garfield City | B176: Garfield City, Bergen County | C176: 0221 | D176: Bergen | E176: 3274976501 | F176: 3540981030 | G176: 3824931898 | H176: 3546963143
A177: Garwood Borough | B177: Garwood Borough, Union County | C177: 2006 | D177: Union | E177: 857015268 | F177: 915512592 | G177: 1033506667 | H177: 935344842.3
A178: Gibbsboro Borough | B178: Gibbsboro Borough, Camden County | C178: 0413 | D178: Camden | E178: 273305827 | F178: 287713981 | G178: 303523384 | H178: 288181064
A179: Glassboro Borough | B179: Glassboro Borough, Gloucester County | C179: 0806 | D179: Gloucester | E179: 1580321467 | F179: 1799968519 | G179: 2085543150 | H179: 1821944379
A180: Glen Gardner Borough | B180: Glen Gardner Borough, Hunterdon County | C180: 1012 | D180: Hunterdon | E180: 193970925 | F180: 208533278 | G180: 235993212 | H180: 212832471.7
A181: Glen Ridge Borough | B181: Glen Ridge Borough, Essex County | C181: 0708 | D181: Essex | E181: 2263259850 | F181: 2454486652 | G181: 2677425509 | H181: 2465057337
A182: Glen Rock Borough | B182: Glen Rock Borough, Bergen County | C182: 0222 | D182: Bergen | E182: 2909801829 | F182: 3155657099 | G182: 3435721151 | H182: 3167060026
A183: Gloucester City | B183: Gloucester City, Camden County | C183: 0414 | D183: Camden | E183: 652705893 | F183: 724169949 | G183: 844685340 | H183: 740520394
A184: Gloucester County | B184: =A184 -> Gloucester County | C184: 0800 | D184: Gloucester | E184: 33944924694 | F184: 38066589418 | G184: 42255109559 | H184: 38088874557
A185: Gloucester Township | B185: Gloucester Township, Camden County | C185: 0415 | D185: Camden | E185: 5641114325 | F185: 6482939895 | G185: 7062943710 | H185: 6395665977
A186: Green Brook Township | B186: Green Brook Township, Somerset County | C186: 1809 | D186: Somerset | E186: 1681019259 | F186: 1794752284 | G186: 1908132482 | H186: 1794634675
A187: Green Township | B187: Green Township, Sussex County | C187: 1908 | D187: Sussex | E187: 570685161 | F187: 618050314 | G187: 690878986 | H187: 626538153.7
A188: Greenwich Township (Cumberland) | B188: Greenwich Township (Cumberland), Cumberland County | C188: 0606 | D188: Cumberland | E188: 82359471 | F188: 91351701 | G188: 96807499 | H188: 90172890.33
A189: Greenwich Township (Gloucester) | B189: Greenwich Township (Gloucester), Gloucester County | C189: 0807 | D189: Gloucester | E189: 795892149 | F189: 923351547 | G189: 1044780288 | H189: 921341328
A190: Greenwich Township (Warren) | B190: Greenwich Township (Warren), Warren County | C190: 2107 | D190: Warren | E190: 836209827 | F190: 911698568 | G190: 936292004 | H190: 894733466.3
A191: Guttenberg Town | B191: Guttenberg Town, Hudson County | C191: 0903 | D191: Hudson | E191: 1217693978 | F191: 1343018654 | G191: 1338780817 | H191: 1299831150
A192: Hackensack City | B192: Hackensack City, Bergen County | C192: 0223 | D192: Bergen | E192: 7120307060 | F192: 7568298135 | G192: 8239423844 | H192: 7642676346
A193: Hackettstown Town | B193: Hackettstown Town, Warren County | C193: 2108 | D193: Warren | E193: 1144747290 | F193: 1211468145 | G193: 1332433557 | H193: 1229549664
A194: Haddon Heights Borough | B194: Haddon Heights Borough, Camden County | C194: 0418 | D194: Camden | E194: 910106399 | F194: 958490377 | G194: 994479208 | H194: 954358661.3
A195: Haddon Township | B195: =A195&", "&D195&" County" -> Haddon Township, Camden County | C195: 0416 | D195: Camden | E195: 1715110655 | F195: 1880026434 | G195: 2106314868 | H195: =AVERAGE(E195:G195) -> 1900483986
A196: Haddonfield Borough | B196: Haddonfield Borough, Camden County | C196: 0417 | D196: Camden | E196: 2725318967 | F196: 2905040264 | G196: 3103340093 | H196: 2911233108
A197: Hainesport Township | B197: Hainesport Township, Burlington County | C197: 0316 | D197: Burlington | E197: 967999379 | F197: 1109082196 | G197: 1211689239 | H197: 1096256938
A198: Haledon Borough | B198: Haledon Borough, Passaic County | C198: 1603 | D198: Passaic | E198: 845135279 | F198: 914863801 | G198: 984933190 | H198: 914977423.3
A199: Hamburg Borough | B199: Hamburg Borough, Sussex County | C199: 1909 | D199: Sussex | E199: 332920058 | F199: 370948815 | G199: 445803102 | H199: 383223991.7
A200: Hamilton Township (Atlantic) | B200: Hamilton Township (Atlantic), Atlantic County | C200: 0112 | D200: Atlantic | E200: 2682437039 | F200: 2967046714 | G200: 3297613039 | H200: 2982365597
... 386 more rows

Sheet Instructions
B1: Mayors and Municipal Contact List Update Form
B2: Instruction Manual
A3: a) | B3: This workbook shall be used for completing the Mayors and Municipal Contact List Update form.
A4: b) | B4: Begin by navigating to the "CURRENT MAYORS LIST" tab.
A5: c) | B5: Find your municipality in the MUNI NAME column using "Find and Replace" (CTRL + F).
A6: d) | B6: Review the current contact information for the Mayor.
A7: e) | B7: Navigate to the "Key Inputs" tab.
A8: f) | B8: Select the Municipality by clicking on the arrow on the right side and typing in the entity name. This will populate the entity name and county. This will fill in the MUNI CODE and MUNI NAME columns on the "MUNICIPAL CONTACT LIST UPDATE" tab.
A9: g) | B9: Navigate to the "MUNICIPAL CONTACT LIST UPDATE" tab.
A10: h) | B10: Fill in all relevant columns starting with FIRST NAME for each title listed in the TITLE column.
A11: i) | B11: Make note of the MUNI CODE for your municipality.
A12: j) | B12: Save as <MUNICODE>_contactlist_YEAR with YEAR as a 4-digit number.
A13: k) | B13: Return document via email to: egg@dca.nj.gov.

Sheet CURRENT MAYORS LIST
A1: MUNI CODE | B1: MUNI NAME | C1: COUNTY | D1: ADDRESS 1 | E1: ADDRESS 2 | F1: CITY | G1: STATE | H1: ZIP | I1: PHONE | J1: FAX | K1: MAYOR NAME | L1: TERM START | M1: TERM END | N1: FORM | O1: TERM LEGNTH | P1: EMAIL | Q1: SOCIAL MEDIA HANDLE
A2: 101 | B2: Absecon City | C2: Atlantic | D2: Absecon Municipal Complex | E2: 500 Mill Road | F2: Absecon | G2: NJ | H2: 8201 | I2: (609) 641-0663 | J2: (609) 645-5098 | K2: Thomas Marrone | M2: 2025-12-31 | N2: MAYOR-COUNCIL | O2: 3 | P2: tmarrone@abseconnj.org
A3: 102 | B3: Atlantic City | C3: Atlantic | D3: City Hall | E3: 1301 Bacharach Boulevard | F3: Atlantic City | G3: NJ | H3: 8401 | I3: (609) 347-5300 | J3: (609) 437-5638 | K3: Marty Small, Sr. | M3: 2025-12-31 | P3: msmall@acnj.gov
A4: 103 | B4: Brigantine City | C4: Atlantic | D4: 1417 West Brigantine Avenue | F4: Brigantine | G4: NJ | H4: 08203-2147 | I4: (609) 266-7600 | K4: Vince Sera | M4: 2026-12-31 | P4: vsera@brigantinebeachnj.com
A5: 104 | B5: Buena Borough | C5: Atlantic | D5: 616 Central Avenue | F5: Minotola | G5: NJ | H5: 8341 | I5: (856) 697-9393 | K5: Joseph Baruffi | L5: 2024-01-01 | M5: 2027-12-31 | O5: 4 year | P5: joseph.baruffi@buenaboro.org
A6: 105 | B6: Buena Vista Township | C6: Atlantic | D6: 890 Harding Highway | E6: Post Office Box 605 | F6: Buena | G6: NJ | H6: 8310 | I6: (856) 697-2100 | J6: (856) 697-8353 | K6: William Ruggieri | M6: 2025-12-31 | P6: wruggieri@buenavistanj.com
A7: 106 | B7: Corbin City | C7: Atlantic | D7: 316 Route 50 | F7: Corbin City | G7: NJ | H7: 8270 | I7: (609) 701-0200 | J7: (609) 628-3017 | K7: Robert Schulte | M7: 2026-12-31 | N7: Mayor-Council | P7: mayorschulte@corbincitynj.com
A8: 107 | B8: Egg Harbor City | C8: Atlantic | D8: 500 London Avenue | F8: Egg Harbor City | G8: NJ | H8: 08215-1599 | I8: (609) 965-4683 | J8: (609) 965-6698 | K8: Lisa Jiampetti | M8: 2028-12-31 | P8: jiams208@comcast.net
A9: 108 | B9: Egg Harbor Township | C9: Atlantic | D9: 3515 Bargaintown Road | F9: Egg Harbor Township | G9: NJ | H9: 08234-8321 | I9: (609) 926-4088 | K9: Laura Pfrommer | M9: 2025-12-31 | P9: LPfrommer@ehtgov.org
A10: 109 | B10: Estell Manor City | C10: Atlantic | D10: 148 Cumberland Avenue | F10: Estell Manor | G10: NJ | H10: 8319 | I10: (609) 476-2692 | K10: Elizabeth Owen | M10: 2025-12-31 | P10: eowen@estellmanor.org
A11: 110 | B11: Folsom Borough | C11: Atlantic | D11: 1700 Twelfth Street | F11: Folsom | G11: NJ | H11: 08037-9141 | I11: (609) 561-3178 | K11: Glenn Smith | M11: 2027-12-31 | P11: gsmith@folsomborough.com
A12: 111 | B12: Galloway Township | C12: Atlantic | D12: 300 East Jimmie Leeds Road | F12: Galloway | G12: NJ | H12: 8205 | I12: (609) 652-3700 | J12: (609) 652-1967 | K12: Anthony Coppola, Jr. | M12: 2027-12-31 | P12: acoppola@gtnj.org
A13: 112 | B13: Hamilton Township | C13: Atlantic | D13: 6101 Thirteenth Street | F13: Mays Landing | G13: NJ | H13: 08330-1859 | I13: (609) 625-1511 | K13: Art Schenker | M13: 2025-12-31 | P13: mayor@hamiltonatlnj.gov
A14: 113 | B14: Hammonton Town | C14: Atlantic | D14: 100 Central Avenue | F14: Hammonton | G14: NJ | H14: 8037 | I14: (609) 567-4300 | K14: Stephen DiDonato | M14: 2025-12-31 | P14: sdidonato@townofhammonton.org
A15: 114 | B15: Linwood City | C15: Atlantic | D15: 400 Poplar Avenue | F15: Linwood | G15: NJ | H15: 8221 | I15: (609) 927-4108 | K15: Darren Matik | M15: 2027-12-31 | P15: dmatik@linwoodcity.org
A16: 115 | B16: Longport Borough | C16: Atlantic | D16: 2305 Atlantic Avenue | F16: Longport | G16: NJ | H16: 8403 | I16: (609) 823-7514 | K16: Patrick Armstrong | M16: 2029-01-14 | P16: clerk@longport-nj.us
A17: 116 | B17: Margate City | C17: Atlantic | D17: One South Washington Avenue | F17: Margate | G17: NJ | H17: 08402-2301 | I17: (609) 822-2605 | K17: Michael Collins | M17: 2027-05-09 | O17: 4 | P17: mcollins@margate-nj.com
A18: 117 | B18: Mullica Township | C18: Atlantic | D18: 4528 White Horse Pike | E18: Post Office Box 317 | F18: Elwood | G18: NJ | H18: 8217 | I18: (609) 561-0064 | J18: (609) 561-3031 | K18: DeAnna DeMarco | M18: 2025-12-31 | P18: ddemarco@mullicatownship.org
A19: 118 | B19: Northfield City | C19: Atlantic | D19: 1600 Shore Road | F19: Northfield | G19: NJ | H19: 08225-2201 | I19: (609) 641-2832 | K19: Erland Chau | M19: 2027-12-31 | P19: echau@cityofnorthfield.org
A20: 119 | B20: Pleasantville City | C20: Atlantic | D20: 18 North 1st Street | F20: Pleasantville | G20: NJ | H20: 08232-2604 | I20: (609) 484-3600 | K20: Judy M. Ward | M20: 2025-12-31 | P20: mayorward@pleasantvillenj.us
A21: 120 | B21: Port Republic City | C21: Atlantic | D21: 143 Main Street | F21: Port Republic | G21: NJ | H21: 8241 | I21: (609) 652-1501 | K21: Monica "Niki" Giberson | M21: 2025-12-31 | P21: mayor@portrepublicnj.org
A22: 121 | B22: Somers Point City | C22: Atlantic | D22: City Hall | E22: One West New Jersey Avenue | F22: Somers Point | G22: NJ | H22: 8244 | I22: (609) 927-9088 | K22: Dennis Tapp | M22: 2026-12-31 | P22: dtapp@spgov.org
A23: 122 | B23: Ventnor City | C23: Atlantic | D23: City Hall | E23: 6201 Atlantic Avenue | F23: Ventnor | G23: NJ | H23: 08406-2734 | I23: (609) 823-7900 | K23: H. Timothy Kriebel | M23: 2028-05-14 | P23: tkriebel@ventnorcity.org
A24: 123 | B24: Weymouth Township | C24: Atlantic | D24: 45 South Jersey Avenue | F24: Dorothy | G24: NJ | H24: 8317 | I24: (609) 476-2633 | J24: (609) 476-4466 | K24: Kenneth R. Haeser | M24: 2025-12-31 | P24: mayor@weymouthnj.org
A25: 201 | B25: Allendale Borough | C25: Bergen | D25: 500 West Crescent Avenue | F25: Allendale | G25: NJ | H25: 7401 | I25: (201) 818-4400 | K25: Amy Wilczynski | M25: 2026-12-31 | O25: 4 year | P25: AmyWilczynski@allendalenj.gov
A26: 202 | B26: Alpine Borough | C26: Bergen | D26: 100 Church Street | E26: Post Office Box 1095 | F26: Alpine | G26: NJ | H26: 07620-1095 | I26: (201) 784-2900 | J26: (201) 784-1407 | K26: Paul H. Tomasko | M26: 2026-12-31 | N26: Mayor/Council | O26: 4 year | P26: swehmann@alpinenj.org;
A27: 203 | B27: Bergenfield Borough | C27: Bergen | D27: 198 North Washington Avenue | F27: Bergenfield | G27: NJ | H27: 7621 | I27: (201) 387-4055 | J27: (201) 385-7689 | K27: Arvin Amatorio | L27: 2024-01-01 | M27: 2027-12-31 | O27: 4 | P27: AAmatorio@bergenfieldnj.gov
A28: 204 | B28: Bogota Borough | C28: Bergen | D28: 375 Larch Avenue | F28: Bogota | G28: NJ | H28: 07603-1099 | I28: (201) 342-1736 | K28: Daniele Fede | M28: 2027-12-31 | O28: 4 year | P28: mayorfede@bogotaonline.org
A29: 205 | B29: Carlstadt Borough | C29: Bergen | D29: 500 Madison Street | F29: Carlstadt | G29: NJ | H29: 7072 | I29: (201) 939-2850 | K29: Robert Zimmermann | M29: 2027-12-31 | P29: robert.zimmermann@verizon.net
A30: 206 | B30: Cliffside Park Borough | C30: Bergen | D30: 525 Palisade Avenue | F30: Cliffside Park | G30: NJ | H30: 7010 | I30: (201) 945-3456 | K30: Thomas.Calabrese | M30: 2026-12-31 | P30: Tcalabrese@cliffsideparknj.gov
A31: 207 | B31: Closter Borough | C31: Bergen | D31: 295 Closter Dock Road | F31: Closter | G31: NJ | H31: 07624-2645 | I31: (201) 784-0600 | J31: (201) 784-9727 | K31: John C. Glidden, Jr. | M31: 2026-12-31 | P31: mayor@closternj.us
A32: 208 | B32: Cresskill Borough | C32: Bergen | D32: 67 Union Avenue | F32: Cresskill | G32: NJ | H32: 7626 | I32: (201) 569-5400 | J32: (201) 569-3714 | K32: Benedict Romeo | M32: 2025-12-31 | P32: bnasuto.boro@cresskillboro.org
A33: 209 | B33: Demarest Borough | C33: Bergen | D33: 118 Serpentine Road | F33: Demarest | G33: NJ | H33: 7627 | I33: (201) 768-0167 | K33: Brian Bernstein | M33: 2026-12-31 | P33: mayor@demarestnj.gov
A34: 210 | B34: Dumont Borough | C34: Bergen | D34: 50 Washington Avenue | F34: Dumont | G34: NJ | H34: 7628 | I34: (201) 387-5022 | K34: John W. Russell III | M34: 2027-12-31 | P34: jrussell@dumontboro.org
A35: 211 | B35: Elmwood Park Borough | C35: Bergen | D35: 182 Market Street | F35: Elmwood Park | G35: NJ | H35: 07407-1407 | I35: (201) 796-1457 | K35: Robert Colletti | M35: 2027-12-31 | O35: 4 year | P35: RColleti@elmwoodparknj.us
A36: 212 | B36: East Rutherford Borough | C36: Bergen | D36: One Everett Place | F36: East Rutherford | G36: NJ | H36: 07073-1701 | I36: (201) 933-3444 | K36: Jeffrey J. Lahullier | M36: 2027-12-31 | P36: mayorlahullier@eastrutherfordnj.net
A37: 213 | B37: Edgewater Borough | C37: Bergen | D37: 916 River Road | F37: Edgewater | G37: NJ | H37: 7020 | I37: (201) 943-1700 | K37: Michael McPartland | M37: 2027-12-31 | P37: mayorMcpartland@edgewaternj.org
A38: 214 | B38: Emerson Borough | C38: Bergen | D38: Municipal Place | F38: Emerson | G38: NJ | H38: 07630-1891 | I38: (201) 262-6086 | K38: Danielle DiPaola | M38: 2026-12-31 | P38: Mayor@emersonnj.org
A39: 215 | B39: Englewood City | C39: Bergen | D39: 2-10 North Van Brunt Street | F39: Englewood | G39: NJ | H39: 7631 | I39: (201) 871-6636 | J39: (201) 567-3678 | K39: Michael Wildes | M39: 2025-12-31 | P39: MayorWildes@cityofenglewood.org
A40: 216 | B40: Englewood Cliffs Borough | C40: Bergen | D40: 482 Hudson Terrace | F40: Englewood Cliffs | G40: NJ | H40: 07632-2911 | I40: (201) 569-5252 | K40: Mark Park | M40: 2027-12-31 | P40: mpark@englewoodcliffsnj.org
A41: 217 | B41: Fair Lawn Borough | C41: Bergen | D41: 8-01 Fair Lawn Avenue | E41: P.O. Box 376 | F41: Fair Lawn | G41: NJ | H41: 7410 | I41: (201) 794-5340 | J41: (201) 475-1581 | K41: Gail Rottenstrich | M41: 2025-12-31 | P41: mayor@fairlawn.org; grottenstrich@fairlawn.org
A42: 218 | B42: Fairview Borough | C42: Bergen | D42: 59 Anderson Avenue | F42: Fairview | G42: NJ | H42: 7022 | I42: (201) 943-3300 | K42: Violetta Berisha | M42: 2027-12-31 | P42: vberisha@fairviewborough.com
A43: 219 | B43: Fort Lee Borough | C43: Bergen | D43: 309 Main Street | F43: Fort Lee | G43: NJ | H43: 07024-4705 | I43: (201) 592-3546 | K43: Mark J. Sokolich | M43: 2027-12-31 | N43: Mayor/Council | O43: 4 yr Mayor/3 yr Council | P43: mayor@fortleenj.org
A44: 220 | B44: Franklin Lakes Borough | C44: Bergen | D44: 480 DeKorte Drive | F44: Franklin Lakes | G44: NJ | H44: 7417 | I44: (201) 891-4000 | K44: Charles J. X. Kahwaty | M44: 2026-12-31 | P44: mayor@franklinlakes.org
A45: 221 | B45: Garfield City | C45: Bergen | D45: City Hall | E45: 111 Outwater Lane | F45: Garfield | G45: NJ | H45: 07026-2621 | I45: (973) 340-2000 | J45: (973) 253-7965 | K45: Everett E. Garnto, Jr. | M45: 2028-12-31 | P45: egarnto@garfieldnj.org
A46: 222 | B46: Glen Rock Borough | C46: Bergen | D46: Municipal Building | E46: One Harding Plaza | F46: Glen Rock | G46: NJ | H46: 7452 | I46: (201) 670-3956 | K46: Kristine Morieko | M46: 2025-12-31 | N46: Mayor & Council | O46: 4 & 3 | P46: kmorieko@glenrocknj.net
A47: 223 | B47: Hackensack City | C47: Bergen | D47: 65 Central Avenue | F47: Hackensack | G47: NJ | H47: 07601-4202 | I47: (201) 646-3940 | J47: (201) 646-8059 | K47: John P. Labrosse, Jr. | M47: 2025-06-30 | P47: jlabrosse@hackensack.org; dkarlsson@hackensack.org
A48: 224 | B48: Harrington Park Borough | C48: Bergen | D48: 85 Harriot Avenue | F48: Harrington Park | G48: NJ | H48: 07640-1500 | I48: (201) 768-1700 | K48: Joon L. Chung | M48: 2027-12-31 | P48: clerk@harringtonparknj.gov
A49: 225 | B49: Hasbrouck Heights Borough | C49: Bergen | D49: 218-222 Boulevard | F49: Hasbrouck Heights | G49: NJ | H49: 07604-1920 | I49: (201) 288-0195 | K49: Ronald Kistner | M49: 2027-12-31 | P49: mayorkistner@hasbrouck-heightsnj.org
A50: 226 | B50: Haworth Borough | C50: Bergen | D50: 300 Haworth Avenue | F50: Haworth | G50: NJ | H50: 7641 | I50: (201) 384-4785 | K50: Heather Wasser | M50: 2026-12-31 | O50: 4 year | P50: wasser@haworthnj.org
A51: 227 | B51: Hillsdale Borough | C51: Bergen | D51: 380 Hillsdale Avenue | F51: Hillsdale | G51: NJ | H51: 7642 | I51: (201) 666-4800 | J51: (201) 358-5002 | K51: Michael Sheinfiled | M51: 2027-12-31 | P51: mayor@hillsdalenj.org; msheinfield@hillsdalenj.org
A52: 228 | B52: Ho-Ho-Kus Borough | C52: Bergen | D52: 333 Warren Avenue | F52: Ho-Ho-Kus | G52: NJ | H52: 07423-1594 | I52: (201) 652-4400 | K52: Thomas W. Randall | M52: 2027-12-31 | P52: rrslaw@aol.com
A53: 229 | B53: Leonia Borough | C53: Bergen | D53: 312 Broad Avenue | F53: Leonia | G53: NJ | H53: 7605 | I53: (201) 592-5780 x227 | J53: (201) 592-5746 | K53: William Ziegler | M53: 2027-12-31 | N53: MAYOR-COUNCIL | O53: 4 & 3 | P53: wziegler@leonianj.gov
A54: 230 | B54: Little Ferry Borough | C54: Bergen | D54: 215-217 Liberty Street | F54: Little Ferry | G54: NJ | H54: 7643 | I54: (201) 641-9234 | K54: Mauro Raguseo | M54: 2027-12-31 | P54: mayor@littleferrynj.org
A55: 231 | B55: Lodi Borough | C55: Bergen | D55: One Memorial Drive | F55: Lodi | G55: NJ | H55: 07644-1632 | I55: (973) 365-4005 | K55: Scott A. Luna | M55: 2027-06-30 | P55: sluna@lodi-nj.org
A56: 232 | B56: Lyndhurst Township | C56: Bergen | D56: 367 Valley Brook Avenue | F56: Lyndhurst | G56: NJ | H56: 07071-1810 | I56: (201) 804-2457 | J56: (201) 804-4758 | K56: Robert B. Giangeruso | M56: 2025-05-20 | P56: angelaw@lyndhurstnj.org; rgiangeruso@lyndhurstnj.org
A57: 233 | B57: Mahwah Township | C57: Bergen | D57: 475 Corporate Drive | F57: Mahwah | G57: NJ | H57: 7430 | I57: (201) 529-5757 | K57: James Wysocki | M57: 2028-12-31 | N57: 4 year | P57: jwysocki@mahwahtwp.org
A58: 234 | B58: Maywood Borough | C58: Bergen | D58: 15 Park Avenue | F58: Maywood | G58: NJ | H58: 07607-2015 | I58: (201) 845-2900 | J58: (201) 909-0673 | K58: Richard Bolan | M58: 2027-12-31 | N58: Mayor-Council | O58: 4 year | P58: rbolan@maywoodboro.org
A59: 235 | B59: Midland Park Borough | C59: Bergen | D59: 280 Godwin Avenue | F59: Midland Park | G59: NJ | H59: 7432 | I59: (201) 445-5720 | J59: (551) 600-8296 | K59: Harry Shortway Jr | M59: 2027-12-31 | P59: hshortway@midlandparknj.org
A60: 236 | B60: Montvale Borough | C60: Bergen | D60: 12 DePiero Drive | F60: Montvale | G60: NJ | H60: 07645-1847 | I60: (201) 391-5700 | J60: (201) 391-9317 | K60: Michael N. Ghassali | M60: 2027-12-31 | O60: 4 year | P60: mghassali@montvaleboro.org
A61: 237 | B61: Moonachie Borough | C61: Bergen | D61: 70 Moonachie Road | F61: Moonachie | G61: NJ | H61: 7074 | I61: (201) 641-9117 | J61: (201) 641-9542 | K61: Dennis Vaccaro | M61: 2026-12-31 | O61: 4 year | P61: dvaccaro@moonachie.us
A62: 238 | B62: New Milford Borough | C62: Bergen | D62: 930 River Road | F62: New Milford | G62: NJ | H62: 07646-3043 | I62: (201) 967-5044 | K62: Michael Putrino | M62: 2026-12-31 | O62: 4 year | P62: mputrino@newmilfordboro.com
A63: 239 | B63: North Arlington Borough | C63: Bergen | D63: 214 Ridge Road | F63: North Arlington | G63: NJ | H63: 07031-6036 | I63: (201) 991-6060 | K63: Daniel H. Pronti | M63: 2026-12-31 | O63: 4 year | P63: dpronti@northarlington.org
A64: 240 | B64: Northvale Borough | C64: Bergen | D64: 116 Paris Avenue | F64: Northvale | G64: NJ | H64: 7647 | I64: (201) 767-3330 | K64: Joseph E. McGuire | M64: 2026-12-31 | P64: jmcguire@northvalenj.org
A65: 241 | B65: Norwood Borough | C65: Bergen | D65: 455 Broadway | F65: Norwood | G65: NJ | H65: 7648 | I65: (201) 767-7200 | K65: James P Barsa | M65: 2025-12-31 | P65: jbarsa@norwoodboro.org
A66: 242 | B66: Oakland Borough | C66: Bergen | D66: One Municipal Plaza | F66: Oakland | G66: NJ | H66: 07436-1827 | I66: (201) 337-8111 | K66: Eric Kulmala | M66: 2027-12-31 | P66: mayorkulmala@oakland-nj.org
A67: 243 | B67: Old Tappan Borough | C67: Bergen | D67: 227 Old Tappan Road | F67: Old Tappan | G67: NJ | H67: 7675 | I67: (201) 664-1849 | K67: Thomas Gallagher | M67: 2027-12-31 | P67: mayor@oldtappan.net
A68: 244 | B68: Oradell Borough | C68: Bergen | D68: 355 Kinderkamack Road | F68: Oradell | G68: NJ | H68: 7649 | I68: (201) 261-8200 | K68: James Koth | M68: 2027-12-31 | P68: jkoth@oradell.org
A69: 245 | B69: Palisades Park Borough | C69: Bergen | D69: 275 Broad Avenue | F69: Palisades Park | G69: NJ | H69: 7650 | I69: (201) 585-4100 | K69: Chong Paul Kim | M69: 2026-12-31 | P69: mayorkim@palisadesparknj.us
A70: 246 | B70: Paramus Borough | C70: Bergen | D70: 1 Jockish Square | E70: Borough Hall | F70: Paramus | G70: NJ | H70: 07652-2728 | I70: (201) 265-2100 | J70: (201) 265-0086 | K70: Christopher Di Piazza | M70: 2026-12-31 | P70: cdipiazza@paramusborough.org
A71: 247 | B71: Park Ridge Borough | C71: Bergen | D71: 55 Park Avenue | F71: Park Ridge | G71: NJ | H71: 7656 | I71: (201) 573-1800 | K71: Keith Misciagna | M71: 2025-12-31 | P71: kmisciagna@parkridgeboro.com
A72: 248 | B72: Ramsey Borough | C72: Bergen | D72: 33 North Central Avenue | F72: Ramsey | G72: NJ | H72: 07446-1807 | I72: (201) 825-3400 | K72: Deirdre A. Dillon | M72: 2026-12-31 | P72: ddillon@ramseynj.com
A73: 249 | B73: Ridgefield Borough | C73: Bergen | D73: 700 Shaler Boulevard | F73: Ridgefield | G73: NJ | H73: 7657 | I73: (201) 943-5215 | J73: (201) 943-1112 | K73: Hugo Jimenez | M73: 2028-12-31 | P73: hjimenez@ridgefieldboro.com
A74: 250 | B74: Ridgefield Park Village | C74: Bergen | D74: 234 Main Street | F74: Ridgefield Park | G74: NJ | H74: 07660-2500 | I74: (201) 641-4950 | K74: Adam MacNeill | M74: 2028-05-23 | P74: mayor@ridgefieldpark.org
A75: 251 | B75: Ridgewood Village | C75: Bergen | D75: 131 North Maple Avenue | F75: Ridgewood | G75: NJ | H75: 07450-3236 | I75: (201) 670-5500 | J75: (201) 670-7305 | K75: Paul Vagianos | M75: 2026-12-31 | P75: pvagianos@ridgewoodnj.net
A76: 252 | B76: River Edge Borough | C76: Bergen | D76: 705 Kinderkamack Road | F76: River Vale | G76: NJ | H76: 7661 | I76: (201) 599-6300 | K76: Thomas Papaleo | M76: 2027-12-31 | P76: tpapaleo@riveredgenj.org
A77: 253 | B77: River Vale Township | C77: Bergen | D77: 406 Rivervale Road | F77: River Vale | G77: NJ | H77: 7675 | I77: (201) 664-2346 | K77: Mark Bromberg | M77: 2026-12-31 | P77: mbromberg@rivervalenj.org
A78: 254 | B78: Rochelle Park Township | C78: Bergen | D78: 151 West Passaic Street | F78: Rochelle Park | G78: NJ | H78: 07662-3105 | I78: (201) 587-7730 | K78: Teresa Judge Cravello | M78: 2025-12-31 | P78: tcravello@rochelleparknj.gov
A79: 255 | B79: Rockleigh Borough | C79: Bergen | D79: 26 Rockleigh Road | F79: Rockleigh | G79: NJ | H79: 07647-2706 | I79: (201) 768-4217 | K79: James G. Pontone | M79: 2026-12-31 | P79: mayor@rockleighnj.org
A80: 256 | B80: Rutherford Borough | C80: Bergen | D80: 176 Park Avenue | F80: Rutherford | G80: NJ | H80: 07070-2310 | I80: (201) 460-3000 | K80: Frank Nunziato | M80: 2027-12-31 | O80: 4 YEAR | P80: fnunziato@rutherfordboronj.com
A81: 257 | B81: Saddle Brook Township | C81: Bergen | D81: 55 Mayhill Street | F81: Saddle Brook | G81: NJ | H81: 7663 | I81: (201) 587-2903 | K81: Robert D. White | M81: 2026-12-31 | O81: 4 year | P81: mayorwhite@saddlebrooknj.gov
A82: 258 | B82: Saddle River Borough | C82: Bergen | D82: 100 East Allendale Road | F82: Saddle River | G82: NJ | H82: 07458-3040 | I82: (201) 327-2609 | K82: Albert J. Kurpis | M82: 2027-12-31 | P82: drkurpis@saddleriver.org
A83: 259 | B83: South Hackensack Township | C83: Bergen | D83: 227 Phillips Avenue | F83: South Hackensack | G83: NJ | H83: 7606 | I83: (201) 440-1815 | K83: Gary Brugger | M83: 2025-12-31 | P83: gbrugger@southhackensacknj.org
A84: 260 | B84: Teaneck Township | C84: Bergen | D84: 818 Teaneck Road | F84: Teaneck | G84: NJ | H84: 07666-4599 | I84: (201) 837-1600 | J84: (201) 837-1222 | K84: Mark Schwartz | M84: 2026-12-31 | P84: mschwartz@teanecknj.gov; admin@teanecknjgov.org
A85: 261 | B85: Tenafly Borough | C85: Bergen | D85: 100 Riveredge Road | F85: Tenafly | G85: NJ | H85: 07670-2016 | I85: (201) 568-6100 | K85: Mark Zinna | M85: 2027-12-31 | P85: mzinna@tenafly.net
A86: 262 | B86: Teterboro Borough | C86: Bergen | D86: 510 Route 46 West | F86: Teterboro | G86: NJ | H86: 7608 | I86: (201) 288-1200 | K86: John P. Watt | M86: 2026-06-30 | P86: nsaros@teterboronj.org
A87: 263 | B87: Upper Saddle River Borough | C87: Bergen | D87: 376 West Saddle River Road | F87: Upper Saddle River | G87: NJ | H87: 7458 | I87: (201) 327-2196 | K87: Arman Fardanesh | M87: 2027-12-31 | N87: Borough | O87: 4 year | P87: afardanesh@usrtoday.org
A88: 264 | B88: Waldwick Borough | C88: Bergen | D88: 63 Franklin Turnpike | F88: Waldwick | G88: NJ | H88: 7463 | I88: (201) 652-5300 | J88: (201) 652-5483 | K88: Thomas A. Giordano | M88: 2027-12-31 | O88: 4 year | P88: tgiordano@waldwicknj.org
A89: 265 | B89: Wallington Borough | C89: Bergen | D89: 24 Union Boulevard | F89: Wallington | G89: NJ | H89: 7057 | I89: (973) 777-0318 | K89: Melissa Dabal | M89: 2027-12-31 | P89: mdabal@wallingtonnj.org
A90: 266 | B90: Washington Township | C90: Bergen | D90: 350 Hudson Avenue | F90: Washington Township | G90: NJ | H90: 07675-4731 | I90: (201) 664-4404 | K90: Peter Calamari | M90: 2025-12-31 | P90: mayor@twpofwashington.us
A91: 267 | B91: Westwood Borough | C91: Bergen | D91: 101 Washington Avenue | F91: Westwood | G91: NJ | H91: 7675 | I91: (201) 664-7100 | K91: Ray Arroyo | M91: 2027-12-31 | P91: rarroyo@westwoodnj.gov
A92: 268 | B92: Woodcliff Lake Borough | C92: Bergen | D92: 188 Pascack Road | F92: Woodcliff Lake | G92: NJ | H92: 07677-7921 | I92: (201) 391-4977 | J92: (201) 391-8830 | K92: Carlos Rendo | M92: 2027-12-31 | O92: 4 year | P92: mayorrendo@wclnj.com
A93: 269 | B93: Wood-Ridge Borough | C93: Bergen | D93: 85 Humboldt Street | F93: Wood-Ridge | G93: NJ | H93: 07075-2344 | I93: (201) 939-0202 | K93: Paul A. Sarlo | M93: 2028-12-31 | P93: psarlo@njwoodridge.org
A94: 270 | B94: Wyckoff Township | C94: Bergen | D94: Memorial Town Hall | E94: Scott Plaza | F94: Wyckoff | G94: NJ | H94: 7481 | I94: (201) 891-7000 | K94: Rudolf E. Boonstra | M94: 2025-12-31 | P94: rboonstra@wyckoffnj.gov
A95: 301 | B95: Bass River Township | C95: Burlington | D95: Post Office Box 307 | F95: New Gretna | G95: NJ | H95: 8224 | I95: (609) 296-3337 | K95: William Adams | M95: 2028-05-31 | N95: Non Partisan | P95: bassriverclerk@comcast.net
A96: 302 | B96: Beverly City | C96: Burlington | D96: 446 Broad Street | F96: Beverly | G96: NJ | H96: 08010-1546 | I96: (609) 387-1881 | J96: (609) 387-3558 | K96: Randy H. Miller | M96: 2027-12-31 | P96: rmiller@thecityofbeverly.com
A97: 303 | B97: Bordentown City | C97: Burlington | D97: City Hall | E97: 324 Farnworth Avenue | F97: Bordentown | G97: NJ | H97: 8505 | I97: (609) 298-0604 | K97: Jennifer L. Sciortino | M97: 2025-05-13 | P97: jsciortino@cityofbordentown.com
A98: 304 | B98: Bordentown Township | C98: Burlington | D98: One Municipal Drive | F98: Bordentown | G98: NJ | H98: 8505 | I98: (609) 298-2800 | K98: Eric Holliday | M98: 2027-12-31 | P98: e.holiday@bordentowntwp.org
A99: 305 | B99: Burlington City | C99: Burlington | D99: 525 High Street | F99: Burlington | G99: NJ | H99: 08016-4503 | I99: (609) 386-0200 | J99: (609) 386-0214 | K99: Barry Conaway | L99: 2024-12-31 | M99: 2027-12-31 | N99: Mayor Council | O99: 4 Year | P99: bconaway@burlingtonnj.us
A100: 306 | B100: Burlington Township | C100: Burlington | D100: 851 Old York Road | F100: Burlington Township | G100: NJ | H100: 8016 | I100: (609) 239-5834 | K100: E. L. Pete Green | M100: 2026-12-31 | P100: jbotlinger@twp.burlington.nj.us
A101: 307 | B101: Chesterfield Township | C101: Burlington | D101: 295 Bordentown-Chesterfield Road | F101: Chesterfield | G101: NJ | H101: 8515 | I101: (609) 298-2311 | K101: Shreekant Dhopte | M101: 2025-12-31 | P101: sdhopte@chesterfieldtwp.com
A102: 308 | B102: Cinnaminson Township | C102: Burlington | D102: 1621 Riverton Road | E102: Post Office Box 2100 | F102: Cinnaminson | G102: NJ | H102: 8077 | I102: (856) 829-6000 | K102: Stephanie Kravil | M102: 2025-12-31 | P102: skravil@cinnaminsonnj.org
A103: 309 | B103: Delanco Township | C103: Burlington | D103: 770 Coopertown Road | F103: Delanco | G103: NJ | H103: 8075 | I103: (856) 461-0561 | K103: Carolyn M. Suess | M103: 2025-12-31 | P103: csuess@delancotownship.com
A104: 310 | B104: Delran Township | C104: Burlington | D104: 900 Chester Avenue | F104: Delran | G104: NJ | H104: 8075 | I104: (856) 461-7734 | J104: (856) 764-1494 | K104: Barnes Hutchins | M104: 2025-12-31 | P104: mayor@delrantownship.org
A105: 311 | B105: Eastampton Township | C105: Burlington | D105: 12 Manor House Court | F105: Eastampton | G105: NJ | H105: 08060-4379 | I105: (609) 267-5723 | K105: Ricardo Rodriguez | M105: 2025-12-31 | P105: rrodriguez@eastampton.com
A106: 312 | B106: Edgewater Park Township | C106: Burlington | D106: 400 Delanco Road | F106: Edgewater Park | G106: NJ | H106: 8010 | I106: (609) 877-2050 | K106: Kevin Johnson | M106: 2026-12-31 | P106: kjohnson@edgewaterpark-nj.com
A107: 313 | B107: Evesham Township | C107: Burlington | D107: 984 Tuckerton Road | F107: Marlton | G107: NJ | H107: 08053-2652 | I107: (856) 983-2900 | K107: Jaclyn Veasy | M107: 2025-12-31 | P107: veasyj@evesham-nj.gov
A108: 314 | B108: Fieldsboro Borough | C108: Burlington | D108: 204 Washington Street | F108: Fieldsboro | G108: NJ | H108: 08505-1100 | I108: (609) 298-6344 | K108: David R. Hansell | M108: 2025-12-31 | P108: mayor.fieldsboro@gmail.com
A109: 315 | B109: Florence Township | C109: Burlington | D109: 711 Broad Street | F109: Florence | G109: NJ | H109: 08518-2310 | I109: (609) 499-2525 | K109: Kristan I. Marter | M109: 2027-12-31 | O109: 4 year | P109: mayor@florence-nj.gov
A110: 316 | B110: Hainesport Township | C110: Burlington | D110: One Hainesport Centre | E110: Post Office Box 477 | F110: Hainesport | G110: NJ | H110: 8036 | I110: (609) 267-2730 | K110: Leila Gilmore | M110: 2025-12-31 | P110: lgilmore@hainesporttownship.com
A111: 317 | B111: Lumberton Township | C111: Burlington | D111: 35 Municipal Drive | F111: Lumberton | G111: NJ | H111: 08048-4516 | I111: (609) 267-3217 | J111: 609-267-5566 | K111: Gina LaPlaca | M111: 2025-12-31 | P111: glaplaca@lumbertontwp.com
A112: 318 | B112: Mansfield Township | C112: Burlington | D112: 3135 Route 206 South Suite 1 | F112: Columbus | G112: NJ | H112: 8022 | I112: (609) 298-0542 | K112: Brian Sisz | M112: 2025-12-31 | P112: bsisz@mansfieldtwp.com
A113: 319 | B113: Maple Shade Township | C113: Burlington | D113: 200 Stiles Avenue | F113: Maple Shade | G113: NJ | H113: 8052 | I113: (856) 779-9610 | J113: (856) 779-2524 | K113: Heather Talarico | M113: 2028-12-31 | P113: htalarico@mapleshade.com
A114: 320 | B114: Medford Township | C114: Burlington | D114: 49 Union Street | F114: Medford | G114: NJ | H114: 08055-2411 | I114: (609) 654-2608 | J114: (609) 953-4087 | K114: Erik Rebstock | M114: 2025-12-31 | P114: erebstock@medfordtownship.com
A115: 321 | B115: Medford Lakes Borough | C115: Burlington | D115: 1 Cabin Circle | F115: Medford Lakes | G115: NJ | H115: 08055-2750 | I115: (609) 654-8898 | J115: (609) 654-1816 | K115: William R. Fields | M115: 2028-06-30 | P115: fields@medfordlakes.com
A116: 322 | B116: Moorestown Township | C116: Burlington | D116: 111 West Second Street | F116: Moorestown | G116: NJ | H116: 08057-2480 | I116: (856) 914-3001 | J116: (856) 914-3066 | K116: Quinton Law | M116: 2026-12-31 | P116: qlaw@moorestown.nj.us
A117: 323 | B117: Mount Holly Township | C117: Burlington | D117: 23 Washington Street | E117: Post Office Box 411 | F117: Mount Holly | G117: NJ | H117: 8060 | I117: (609) 845-1102 | J117: (609) 267-8155 | K117: Chris Banks | M117: 2025-12-31 | P117: cbanks@twp.mountholly.nj.us
A118: 324 | B118: Mount Laurel Township | C118: Burlington | D118: 100 Mount Laurel Road | F118: Mount Laurel | G118: NJ | H118: 8054 | I118: (856) 234-0001 | K118: Stephen Steglik | M118: 2026-12-31 | O118: 4 year | P118: ssteglik@mountlaurel.com
A119: 325 | B119: New Hanover Township | C119: Burlington | D119: Post Office Box 159 | F119: Cookstown | G119: NJ | H119: 8511 | I119: (609) 758-2172 | K119: Paul D. Peteria | M119: 2026-12-31 | P119: mayor@newhanovertwp.com; clerk@newhanovertwp.com
A120: 326 | B120: North Hanover Township | C120: Burlington | D120: 41 Schoolhouse Road | F120: Jacobstown | G120: NJ | H120: 08562-2106 | I120: (609) 758-2522 | K120: Ronald DeBaecke | M120: 2025-12-31 | P120: rdebaecke@northhanovertwp.com
A121: 327 | B121: Palmyra Borough | C121: Burlington | D121: 20 West Broad Street | F121: Palmyra | G121: NJ | H121: 8065 | I121: (856) 829-6100 | J121: (856) 692-3058 | K121: Gina Ragomo Tait | M121: 2027-12-31 | P121: gtait@boroughofpalmyra.com
A122: 328 | B122: Pemberton Borough | C122: Burlington | D122: 50 Egbert Street | E122: Post Office Box 261 | F122: Pemberton | G122: NJ | H122: 08068-0261 | I122: (609) 894-8222 | K122: Bonnie Haines | M122: 2027-12-31 | P122: bhaines@pemberton.comcastbiz.net
A123: 329 | B123: Pemberton Township | C123: Burlington | D123: 500 Pemberton-Browns Mills Rd. | F123: Pemberton | G123: NJ | H123: 08068-1539 | I123: (609) 894-3304 | J123: (609) 894-2703 | K123: Jack K. Tompkins | M123: 2026-12-31 | P123: mayor@pemberton-twp.com
A124: 330 | B124: Riverside Township | C124: Burlington | D124: 237 S. Pavilion Avenue | E124: Post Office Box 188 | F124: Riverside | G124: NJ | H124: 8075 | I124: (856) 461-1460 | J124: (856) 461-5878 | K124: Gary Haman | M124: 2025-12-31 | P124: ghaman@riversidetwp.org
A125: 331 | B125: Riverton Borough | C125: Burlington | D125: 505A Howard Street | F125: Riverton | G125: NJ | H125: 8077 | I125: (856) 829-0120 | K125: James Quinn | M125: 2027-12-31 | P125: jquinn@riverton-nj.com
A126: 332 | B126: Shamong Township | C126: Burlington | D126: 105 Willow Grove Road | F126: Shamong | G126: NJ | H126: 8088 | I126: (609) 268-2377 | J126: (609) 268-2701 | K126: Michael DiCroce | M126: 2025-12-31 | P126: mdicroce@shamong.net
A127: 333 | B127: Southampton Township | C127: Burlington | D127: 5 Retreat Road | F127: Southampton | G127: NJ | H127: 08088-3514 | I127: (609) 859-2736 | K127: Michael Mikulski | M127: 2025-12-31 | P127: khoffman@southamptonnj.org
A128: 334 | B128: Springfield Township | C128: Burlington | D128: Post Office Box 119 | E128: 2159 Jacksonville- Jobstown Road | F128: Jobstown | G128: NJ | H128: 8041 | I128: (609) 723-2464 | K128: David Frank | M128: 2025-12-31 | P128: dfrank@springfieldtownshipnj.org
A129: 335 | B129: Tabernacle Township | C129: Burlington | D129: 163 Carranza Road | F129: Tabernacle | G129: NJ | H129: 8088 | I129: (609) 268-1220 | K129: Joseph Barton | M129: 2025-12-31 | P129: Jbarton@townshipoftabernacle-nj.gov
A130: 336 | B130: Washington Township | C130: Burlington | D130: 1018 River Road | F130: Egg Harbor | G130: NJ | H130: 08215-4707 | I130: (609) 965-3242 | J130: (609)965-3242 | K130: Daniel James | M130: 2025-12-31 | P130: djames@wtbcnj.org
A131: 337 | B131: Westampton Township | C131: Burlington | D131: 710 Rancocas Road | F131: Westampton | G131: NJ | H131: 08060-5642 | I131: (609) 267-1891 | K131: Sandy Henley | M131: 2026-12-31 | P131: shenley@westampton.com
A132: 338 | B132: Willingboro Township | C132: Burlington | D132: 1 Re. Dr. Martin Luther King Jr. Drive | E132: Municipal Complex | F132: Willingboro | G132: NJ | H132: 8046 | I132: (609) 877-2200 | K132: Samantha Whitfield | M132: 2025-12-31 | P132: swhitfield@willingboronj.gov
A133: 339 | B133: Woodland Township | C133: Burlington | D133: 3943 Route 563 | E133: Post Office Box 388 | F133: Chatsworth | G133: NJ | H133: 8019 | I133: (609) 726-1700 | K133: William Degroff | M133: 2026-12-31 | P133: wdegroff@woodlandtownship.org
A134: 340 | B134: Wrightstown Borough | C134: Burlington | D134: 21 Saylors Pond Road | F134: Wrightstown | G134: NJ | H134: 8562 | I134: (609) 723-4450 | J134: (609) 723-7137 | K134: Donald Cottrell | M134: 2025-12-31 | P134: mayor@wrightstownborough.com
A135: 401 | B135: Audubon Borough | C135: Camden | D135: Municipal Complex | E135: 606 West Nicholson Road | F135: Audubon | G135: NJ | H135: 8106 | I135: (856) 547-0711 | K135: Rob Jakubowski | M135: 2025-05-11 | P135: r.jakubowski@audubonnj.com
A136: 402 | B136: Audubon Park Borough | C136: Camden | D136: 20 Road C | F136: Audubon Park | G136: NJ | H136: 8106 | I136: (856) 547-5236 | K136: Lawrence E. Pennock | M136: 2026-12-31 | P136: audubonparkmayor@gmail.com
A137: 403 | B137: Barrington Borough | C137: Camden | D137: 229 Trenton Avenue | F137: Barrington | G137: NJ | H137: 8007 | I137: (856) 547-8585 | K137: Kyle Hanson | M137: 2027-12-31 | N137: Mayor/Council | O137: 4yr/3yr | P137: mayor@barringtonboro.com
A138: 404 | B138: Bellmawr Borough | C138: Camden | D138: 21 East Browning Road | E138: Post Office 368 | F138: Bellmawr | G138: NJ | H138: 08099-0368 | I138: (856) 933-1313 | J138: (856) 931-2368 | K138: Charles J. Sauter, III | M138: 2026-12-31 | O138: 4 year | P138: Mayor-sauter@bellmawr.com
A139: 405 | B139: Berlin Borough | C139: Camden | D139: 59 South White Horse Pike | F139: Berlin | G139: NJ | H139: 8009 | I139: (856) 767-7777 | J139: ext. 311 | K139: Rick Miller | M139: 2027-12-31 | P139: mayormiller@berlinnj.org
A140: 406 | B140: Berlin Township | C140: Camden | D140: 135 Route 73 South | F140: West Berlin | G140: NJ | H140: 08091-3754 | I140: (856) 767-1854 | K140: Phyllis A. Magazzu | M140: 2025-12-31 | P140: mayormagazzu@berlintwp.com
A141: 407 | B141: Brooklawn Borough | C141: Camden | D141: 301 Christiana Street | F141: Brooklawn | G141: NJ | H141: 8030 | I141: (856) 456-0750 | K141: Gerry Grandstrom | M141: 2026-12-31 | P141: ggrandstrom@brooklawn-nj.com
A142: 408 | B142: Camden City | C142: Camden | D142: City Hall | E142: 520 Market Street | F142: Camden | G142: NJ | H142: 08101-5120 | I142: (856) 757-7200 | J142: (856) 757-7389 | K142: Victor Carstarphen | M142: 2025-12-31 | P142: vicarsta@ci.camden.nj.us
A143: 409 | B143: Cherry Hill Township | C143: Camden | D143: 820 Mercer Street | F143: Cherry Hill | G143: NJ | H143: 08002-2638 | I143: (856) 488-7878 | K143: David Fisher | M143: 2027-12-31 | P143: DFleisher@CHNJ.gov
A144: 410 | B144: Chesilhurst Borough | C144: Camden | D144: 201 Grant Avenue | F144: Chesilhurst | G144: NJ | H144: 8089 | I144: (856) 767-4153 | J144: (856) 753-1696 | K144: Jamila Odom-Bremmer | M144: 2025-12-31 | P144: jbremmer@chesilhurstboro.org
A145: 411 | B145: Clementon Borough | C145: Camden | D145: 101 Gibbsboro Road | F145: Clementon | G145: NJ | H145: 8021 | I145: (856) 783-0284 | K145: Thomas J. Weaver | M145: 2027-12-31 | P145: t.weaver@clementon-nj.com
A146: 412 | B146: Collingswood Borough | C146: Camden | D146: 678 Haddon Avenue | F146: Collingswood | G146: NJ | H146: 8108 | I146: (856) 854-0720 | J146: (856) 854-0632 | K146: M. James Maley, Jr. | M146: 2025-05-13 | P146: jmaley@collingswood.com
A147: 413 | B147: Gibbsboro Borough | C147: Camden | D147: 49 Kirkwood Road | F147: Gibbsboro | G147: NJ | H147: 08026-1432 | I147: (856) 783-6655 | J147: (856) 782-8694 | K147: Edward G. Campbell, III | M147: 2027-12-31 | P147: mayor@gibbsborotownhall.com
A148: 414 | B148: Gloucester City | C148: Camden | D148: Municipal Building | E148: 512 Monmouth Street | F148: Gloucester City | G148: NJ | H148: 8030 | I148: (856) 456-0205 | J148: (856) 456-8030 | K148: Dayl R. Baile | M148: 2026-12-31 | P148: mayorbaile@cityofgloucester.org
A149: 415 | B149: Gloucester Township | C149: Camden | D149: P.O. Box 8 | F149: Blackwood | G149: NJ | H149: 8012 | I149: (856) 228-4000 | J149: (856) 374-5721 | K149: David R. Mayer | M149: 2025-12-31 | P149: Mayor@glotwp.com
A150: 416 | B150: Haddon Township | C150: Camden | D150: 135 Haddon Avenue | F150: Westmont | G150: NJ | H150: 8108 | I150: (856) 854-1176 | J150: (856) 854-9561 | K150: Randall W. Teague | M150: 2027-05-11 | O150: 4 year | P150: mayorteague@haddontwp.com
A151: 417 | B151: Haddonfield Borough | C151: Camden | D151: 242 Kings Highway East | E151: P.O. Box 23005 | F151: Haddonfield | G151: NJ | H151: 8033 | I151: (856) 429-4700 | J151: (856) 795-1445 | K151: Colleen Bianco Bezich | M151: 2025-05-20 | P151: cbbezich@haddonfield-nj.gov
A152: 418 | B152: Haddon Heights Borough | C152: Camden | D152: 625 Station Avenue | F152: Haddon Heights | G152: NJ | H152: 8035 | I152: (856) 547-7164 | K152: Zachary Houck | M152: 2027-12-31 | O152: 4 year | P152: mayor@haddonhts.com
A153: 419 | B153: Hi-Nella Borough | C153: Camden | D153: 100 Wykagyl Road | F153: Hi-Nella | G153: NJ | H153: 8083 | I153: (856) 784-6237 | K153: Michael Segeren | M153: 2025-12-31 | P153: msegeren@hinellaboro.org
A154: 420 | B154: Laurel Springs Borough | C154: Camden | D154: 135 Broadway | F154: Laurel Springs | G154: NJ | H154: 08021-2006 | I154: (856) 784-0500 | J154: (856) 784-5880 | K154: Thomas A. Barbera | M154: 2027-12-31 | P154: dawn@laurelsprings-nj.com
A155: 421 | B155: Lawnside Borough | C155: Camden | D155: 4 East Douglas Avenue | F155: Lawnside | G155: NJ | H155: 08045-1597 | I155: (856) 573-6200 | J155: (856) 546-3232 | K155: Mary Ann Wardlow | M155: 2026-12-31 | P155: mayorwardlow@lawnside.net
A156: 422 | B156: Lindenwold Borough | C156: Camden | D156: 15 North White Horse Pike | F156: Lindenwold | G156: NJ | H156: 8021 | I156: (856) 783-2121 | K156: Richard E. Roach | M156: 2025-12-31 | P156: rroach@lindenwold.net
A157: 423 | B157: Magnolia Borough | C157: Camden | D157: 438 West Evesham Avenue | F157: Magnolia | G157: NJ | H157: 8049 | I157: (856) 783-1520 | J157: (856) 627-7294 | K157: Bettyann Cowling-Carson | M157: 2025-12-31 | P157: baccarson@magnolia-nj.org
A158: 424 | B158: Merchantville Borough | C158: Camden | D158: One West Maple Avenue | F158: Merchantville | G158: NJ | H158: 8109 | I158: (856) 662-2474 | J158: (856) 662-0461 | K158: Edward F. Brennan | M158: 2026-12-31 | P158: mayor@merchantvillenj.gov
A159: 425 | B159: Mount Ephraim Borough | C159: Camden | D159: 121 South Black Horse Pike | F159: Mount Ephraim | G159: NJ | H159: 08059-1721 | I159: (856) 931-1546 | K159: Sue Carney | M159: 2026-12-31 | O159: 4 | P159: scarney@mountephraim-nj.com
A160: 426 | B160: Oaklyn Borough | C160: Camden | D160: 500 White Horse Pike | F160: Oaklyn | G160: NJ | H160: 8107 | I160: (856) 858-2457 | K160: Greg Brandley | M160: 2027-12-31 | P160: g.brandley@oaklyn-nj.net
A161: 427 | B161: Pennsauken Township | C161: Camden | D161: 5605 North Crescent Boulevard | F161: Pennsauken | G161: NJ | H161: 8110 | I161: (856) 665-1000 | K161: Nicole Roberts | M161: 2025-12-31 | P161: nroberts@pennsauken.gov
A162: 428 | B162: Pine Hill Borough | C162: Camden | D162: 45 West 7th Avenue | F162: Pine Hill | G162: NJ | H162: 08021-6399 | I162: (856) 783-7400 | K162: Christopher Green | M162: 2027-12-31 | O162: 4 year | P162: cgreen@pinehillboronj.com
A163: 430 | B163: Runnemede Borough | C163: Camden | D163: 24 North Black Horse Pike | F163: Runnemede | G163: NJ | H163: 8078 | I163: (856) 939-5196 | K163: Nick Kappatos | M163: 2026-12-31 | O163: 4 year | P163: nkappatos@runnemedenj.org
A164: 431 | B164: Somerdale Borough | C164: Camden | D164: 105 Kennedy Boulevard | F164: Somerdale | G164: NJ | H164: 08083-1018 | I164: (856) 783-6320 | J164: (856) 783-6863 | K164: George Badey | M164: 2025-12-31 | P164: gbadey@somerdale-nj.com
A165: 432 | B165: Stratford Borough | C165: Camden | D165: 307 Union Avenue | F165: Stratford | G165: NJ | H165: 8084 | I165: (856) 783-0600 | K165: Linda Hall | M165: 2027-12-31 | P165: johnkeenan@stratfordnj.org
A166: 433 | B166: Tavistock Borough | C166: Camden | D166: Post Office Box 218 | F166: Barrington | G166: NJ | H166: 8007 | I166: (856) 429-0039 | K166: Joseph DelDuca | M166: 2025-12-31 | P166: tavistockboro@yahoo.com
A167: 434 | B167: Voorhees Township | C167: Camden | D167: 2400 Voorhees Town Center | F167: Voorhees | G167: NJ | H167: 08043-1493 | I167: (856) 429-7174 | K167: Michael Mignogna | L167: 2025-01-01 | M167: 2027-12-31 | P167: mmignogna@voorheesnj.com
A168: 435 | B168: Waterford Township | C168: Camden | D168: 2131 Auburn Avenue | F168: Atco | G168: NJ | H168: 8004 | I168: (856) 768-2300 | K168: Robert Doney | M168: 2025-12-31 | P168: rdoney@waterfordtwp.org
A169: 436 | B169: Winslow Township | C169: Camden | D169: 125 South Route 73 | F169: Braddock | G169: NJ | H169: 08037-9422 | I169: (609) 567-0700 | K169: Marie Lawrence | M169: 2027-12-31 | P169: mayorlawrence@winslowtownship.com
A170: 437 | B170: Woodlynne Borough | C170: Camden | D170: 200 Cooper Avenue | F170: Woodlynne | G170: NJ | H170: 08107-2108 | I170: (856) 962-8300 | K170: Joseph Chukwueke | M170: 2027-12-31 | P170: woodlynnemayor@comcast.net
A171: 501 | B171: Avalon Borough | C171: Cape May | D171: 3100 Dune Drive | F171: Avalon | G171: NJ | H171: 08202-1706 | I171: (609) 967-5924 | K171: John M. McCorristin | M171: 2027-06-30 | N171: Mayor/Council | O171: 4 year each | P171: skeen@avalonboro.org
A172: 502 | B172: Cape May City | C172: Cape May | D172: 643 Washington Street | F172: Cape May | G172: NJ | H172: 08204-2397 | I172: (609) 884-9525 | K172: Zachary Mullock | M172: 2028-12-31 | P172: zmullock@capemaycity.com
A173: 503 | B173: Cape May Point Borough | C173: Cape May | D173: 215 Lighthouse Avenue | E173: Post Office Box 490 | F173: Cape May Point | G173: NJ | H173: 08212-0504 | I173: (609) 884-8468 | K173: Anita vanHeeswyk | M173: 2029-01-14 | P173: avanheeswyk@capemaypoint.org
A174: 504 | B174: Dennis Township | C174: Cape May | D174: 571 Petersburg Road | E174: Post Office Box 204 | F174: Dennisville | G174: NJ | H174: 08214-0204 | I174: (609) 861-9700 | J174: (609) 861-9719 | K174: Zeth A. Matalucci | M174: 2025-12-31 | P174: matalucci@dennistwp.org
A175: 505 | B175: Lower Township | C175: Cape May | D175: 2600 Bayshore Road | F175: Villas | G175: NJ | H175: 08251-1397 | I175: (609) 886-2005 | J175: (609) 886-1694 | K175: Frank Sippel | M175: 2028-12-31 | P175: fsippel@townshipoflower.org
A176: 506 | B176: Middle Township | C176: Cape May | D176: 33 Mechanic Street | F176: Cape May Court House | G176: NJ | H176: 8210 | I176: (609) 465-8732 | J176: (609)-465-9659 | K176: Christopher Leusner | M176: 2026-12-31 | N176: Mayor/Committee | O176: 3 year | P176: chris.leusner@middletownship.com
A177: 507 | B177: North Wildwood City | C177: Cape May | D177: 901 Atlantic Avenue | F177: North Wildwood | G177: NJ | H177: 8260 | I177: (609) 522-2030 | J177: (609) 523-8502 | K177: Patrick T. Rosenello | M177: 2025-12-31 | P177: prosenello@northwildwood.com
A178: 508 | B178: Ocean City | C178: Cape May | D178: 861 Asbury Avenue | F178: Ocean City | G178: NJ | H178: 8226 | I178: (609) 525-9351 | J178: (609) 399-3697 | K178: Jay A. Gillian | M178: 2026-06-30 | P178: mayor@ocnj.us
A179: 509 | B179: Sea Isle City | C179: Cape May | D179: 4416 Landis Avenue | F179: Sea Isle City | G179: NJ | H179: 08243-1831 | I179: (609) 263-4461 | J179: (609) 263-2142 | K179: Leonard C Desiderio | M179: 2027-06-30 | N179: Mayor/Council | O179: 4 year each | P179: mayorlen@seaislecitynj.us
A180: 510 | B180: Stone Harbor Borough | C180: Cape May | D180: 9508 Second Avenue | F180: Stone Harbor | G180: NJ | H180: 8247 | I180: (609) 368-5102 | K180: Tim Carney | M180: 2025-12-31 | P180: carneyt@shnj.org
A181: 511 | B181: Upper Township | C181: Cape May | D181: Post Office Box 205 | F181: Tuckahoe | G181: NJ | H181: 8250 | I181: (609) 628-2011 | J181: (609) 628-3092 | K181: Curtis T. Corson, Jr. | M181: 2025-12-31 | P181: ccorson@uppertownship.com
A182: 512 | B182: West Cape May Borough | C182: Cape May | D182: 732 Broadway | F182: West Cape May | G182: NJ | H182: 08204-1214 | I182: (609) 884-1005 | J182: (609) 898-0888 | K182: Carol Sabo | M182: 2025-12-31 | P182: csabo@westcapemay.us
A183: 513 | B183: West Wildwood Borough | C183: Cape May | D183: 701 West Glenwood Avenue | F183: West Wildwood | G183: NJ | H183: 08260-2221 | I183: (609) 522-4845 | K183: Matthew J. Ksiazek | M183: 2028-12-31 | N183: Commission | O183: 4 year | P183: mksiazek@westwildwood.org
A184: 514 | B184: Wildwood City | C184: Cape May | D184: 4400 New Jersey Avenue | F184: Wildwood | G184: NJ | H184: 08260-1729 | I184: (609) 522-2444 | J184: (609) 523-9200 | K184: Ernest Troiano | M184: 2027-12-31 | P184: smaxwell@wildwoodnj.org
A185: 515 | B185: Wildwood Crest Borough | C185: Cape May | D185: 6101 Pacific Avenue | F185: Wildwood Crest | G185: NJ | H185: 8260 | I185: (609) 522-5176 | J185: (609) 522-6692 | K185: Donald Cabrera | M185: 2025-12-31 | P185: dcabrera@wildwoodcrest.org
A186: 516 | B186: Woodbine Borough | C186: Cape May | D186: 501 Washington Avenue | F186: Woodbine | G186: NJ | H186: 8270 | I186: (609) 861-2153 | J186: (609) 861-2529 | K186: William Pikolycky | M186: 2026-12-31 | P186: mayor@boroughofwoodbine.net
A187: 601 | B187: Bridgeton City | C187: Cumberland | D187: 181 East Commerce Street | F187: Bridgeton | G187: NJ | H187: 08302-2646 | I187: (856) 455-3230 | J187: (856) 455-7421 | K187: Albert B. Kelly | M187: 2026-12-31 | P187: mayor@cityofbridgeton.com
A188: 602 | B188: Commercial Township | C188: Cumberland | D188: 1768 Main Street | F188: Port Norris | G188: NJ | H188: 08349-3348 | I188: (856) 785-3100 | K188: Joseph Klaudi | M188: 2025-12-31 | P188: Jklaudi@commercialtwp.com
A189: 603 | B189: Deerfield Township | C189: Cumberland | D189: Post Office Box 350 | F189: Rosenhayn | G189: NJ | H189: 8352 | I189: (856) 455-3200 | J189: (856) 455-0025 | K189: Abigail P. O'Brien | M189: 2025-12-31 | P189: apobrien@deerfieldtownship.org
A190: 604 | B190: Downe Township | C190: Cumberland | D190: 288 Main Street | F190: Newport | G190: NJ | H190: 08345-2131 | I190: (856) 447-3100 | K190: Michael L. Rothman | M190: 2025-12-31 | P190: MAYORROTHMAN@DOWNETWPNJ.ORG; ROTHMANDOWNE@GMAIL.COM
A191: 605 | B191: Fairfield Township | C191: Cumberland | D191: Post Office Box 240 | F191: Fairton | G191: NJ | H191: 8320 | I191: (856) 451-9284 | K191: Marvin Pierce, Jr. | M191: 2025-12-31 | P191: mpiercejr@fairfieldtownshipnj.org
A192: 606 | B192: Greenwich Township | C192: Cumberland | D192: 1000 Ye Greate Street | E192: Post Office Box 64 | F192: Greenwich | G192: NJ | H192: 08323-0064 | I192: (856) 498-5352 | K192: William Reinhart | L192: 2024-01-01 | M192: 2026-12-31 | P192: committeemanreinhart@gmail.com
A193: 607 | B193: Hopewell Township | C193: Cumberland | D193: 590 Shiloh Pike | F193: Bridgeton | G193: NJ | H193: 08302-1492 | I193: (856) 455-1230 | J193: (856) 455-3080 | K193: Robin Freitag | M193: 2025-12-31 | N193: not since 2018 | O193: 1 year | P193: mayor@hopewelltwp-nj.com
A194: 608 | B194: Lawrence Township | C194: Cumberland | D194: 357 Main Street | E194: Post Office Box 697 | F194: Cedarville | G194: NJ | H194: 08311-0697 | I194: (856) 447-4554 | J194: (856) 447-3055 | K194: Elmer "Skip" Bowman | M194: 2026-12-31 | P194: Mayor@lawrtwp.com
A195: 609 | B195: Maurice River Township | C195: Cumberland | D195: 590 Main Street | E195: Post Office Box 218 | F195: Leesburg | G195: NJ | H195: 8327 | I195: (856) 785-1120 | J195: (856) 785-1974 | K195: Ken Whildin | M195: 2025-12-31 | P195: Kwhildin@mauricerivertwp.org
A196: 610 | B196: Millville City | C196: Cumberland | D196: 12 South High Street | E196: Post Office Box 609 | F196: Millville | G196: NJ | H196: 8332 | I196: (856) 825-7000 | K196: Benjamin Romanik | M196: 2025-12-31 | P196: Benjamin.Romanik@millvillenj.gov;
A197: 611 | B197: Shiloh Borough | C197: Cumberland | D197: 900 Main Street | E197: Post Office Box 349 | F197: Shiloh | G197: NJ | H197: 8353 | I197: (856) 455-3054 | K197: Brad E. Campbell | M197: 2028-12-31 | P197: mayor@shilohborough.com
A198: 612 | B198: Stow Creek Township | C198: Cumberland | D198: 474 Macanippuck Road | F198: Bridgeton | G198: NJ | H198: 8302 | I198: (856) 451-8822 | K198: Dale F. Cruzan, Jr. | M198: 2025-12-31 | P198: committemancruzan@stowcreektwp.com
A199: 613 | B199: Upper Deerfield Township | C199: Cumberland | D199: Post Office Box 5098 | E199: 1325 State Highway 77 | F199: Seabrook | G199: NJ | H199: 8302 | I199: (856) 451-3811 | J199: (856) 451-1379 | K199: John Daddario | M199: 2025-12-31 | P199: jdaddario@upperdeerfield.com
A200: 614 | B200: Vineland City | C200: Cumberland | D200: 640 East Wood Street | E200: Post Office Box 1508 | F200: Vineland | G200: NJ | H200: 08362-1508 | I200: (856) 794-4000 | K200: Anthony R. Fanucci | M200: 2028-12-31 | P200: afanucci@vinelandcity.org
... 365 more rows

Sheet Key Inputs
B2: State of New Jersey
B3: Department of Community Affairs
B5: Municipal Contact List and Mayors List Update
B7: Please choose your municipality: | G7: Allentown Borough, Monmouth County
B9: Muni Code: | D9: =VLOOKUP(G7,Muni!B1:D588,2,FALSE) -> 1302 | G9: County: | I9: =VLOOKUP(G7,Muni!B1:E586, 3, FALSE) -> Monmouth

Sheet MUNICIPAL CONTACT LIST UPDATE
A1: 2025 MUNICIPAL CONTACT LIST UPDATE
A4: MUNI CODE | B4: TITLE | C4: MUNI NAME | D4: FIRST NAME | E4: LAST NAME | F4: EMAIL | G4: PHONE NUMBER | H4: EXTENSION | I4: COUNTY | J4: ADDRESS 1 | K4: ADDRESS 2 | L4: CITY | M4: STATE | N4: ZIP | O4: MAYORS TERM START | P4: MAYORS TERM END | Q4: FORM OF GOVERNMENT
A5: ='Key Inputs'!$D$9 -> 1302 | B5: Mayor | C5: ='Key Inputs'!$G$7 -> Allentown Borough, Monmouth County
A6: ='Key Inputs'!$D$9 -> 1302 | B6: Business Administrator or Manager | C6: ='Key Inputs'!$G$7 -> Allentown Borough, Monmouth County
A7: ='Key Inputs'!$D$9 -> 1302 | B7: Assistant Business Administrator or Manager | C7: ='Key Inputs'!$G$7 -> Allentown Borough, Monmouth County
A8: ='Key Inputs'!$D$9 -> 1302 | B8: Clerk | C8: ='Key Inputs'!$G$7 -> Allentown Borough, Monmouth County
A9: ='Key Inputs'!$D$9 -> 1302 | B9: Deputy Clerk | C9: ='Key Inputs'!$G$7 -> Allentown Borough, Monmouth County
A10: ='Key Inputs'!$D$9 -> 1302 | B10: Finance Officer | C10: ='Key Inputs'!$G$7 -> Allentown Borough, Monmouth County
A11: ='Key Inputs'!$D$9 -> 1302 | B11: Assistant Finance Officer | C11: ='Key Inputs'!$G$7 -> Allentown Borough, Monmouth County
A12: ='Key Inputs'!$D$9 -> 1302 | B12: Municipal Auditor | C12: ='Key Inputs'!$G$7 -> Allentown Borough, Monmouth County
A13: ='Key Inputs'!$D$9 -> 1302 | B13: Public Works Manager | C13: ='Key Inputs'!$G$7 -> Allentown Borough, Monmouth County
A14: ='Key Inputs'!$D$9 -> 1302 | B14: Tax Collector | C14: ='Key Inputs'!$G$7 -> Allentown Borough, Monmouth County
A15: ='Key Inputs'!$D$9 -> 1302 | B15: Purchasing Agent/QPA 1 | C15: ='Key Inputs'!$G$7 -> Allentown Borough, Monmouth County
A16: ='Key Inputs'!$D$9 -> 1302 | B16: Purchasing Agent/QPA 2 | C16: ='Key Inputs'!$G$7 -> Allentown Borough, Monmouth County
A17: ='Key Inputs'!$D$9 -> 1302 | B17: Purchasing Agent/QPA 3 | C17: ='Key Inputs'!$G$7 -> Allentown Borough, Monmouth County
A18: ='Key Inputs'!$D$9 -> 1302 | B18: Fire District | C18: ='Key Inputs'!$G$7 -> Allentown Borough, Monmouth County
A19: ='Key Inputs'!$D$9 -> 1302 | B19: Housing Authority (if applicable) | C19: ='Key Inputs'!$G$7 -> Allentown Borough, Monmouth County
A20: ='Key Inputs'!$D$9 -> 1302 | B20: Utility Authority - MUA (if applicable) | C20: ='Key Inputs'!$G$7 -> Allentown Borough, Monmouth County
A21: ='Key Inputs'!$D$9 -> 1302 | B21: School Business Administrator | C21: ='Key Inputs'!$G$7 -> Allentown Borough, Monmouth County
A22: ='Key Inputs'!$D$9 -> 1302 | B22: School Business Administrator 1 (If needed) | C22: ='Key Inputs'!$G$7 -> Allentown Borough, Monmouth County
A23: ='Key Inputs'!$D$9 -> 1302 | B23: School Business Administrator 2 (If needed) | C23: ='Key Inputs'!$G$7 -> Allentown Borough, Monmouth County
A24: ='Key Inputs'!$D$9 -> 1302 | B24: School Business Administrator 3 (If needed) | C24: ='Key Inputs'!$G$7 -> Allentown Borough, Monmouth County
A25: ='Key Inputs'!$D$9 -> 1302 | B25: School Business Administrator 4 (If needed) | C25: ='Key Inputs'!$G$7 -> Allentown Borough, Monmouth County
A26: ='Key Inputs'!$D$9 -> 1302 | B26: School Business Administrator 5 (If needed) | C26: ='Key Inputs'!$G$7 -> Allentown Borough, Monmouth County
A27: ='Key Inputs'!$D$9 -> 1302 | B27: School Business Administrator 6 (If needed) | C27: ='Key Inputs'!$G$7 -> Allentown Borough, Monmouth County
A28: ='Key Inputs'!$D$9 -> 1302 | B28: School Business Administrator 7 (If needed) | C28: ='Key Inputs'!$G$7 -> Allentown Borough, Monmouth County
A29: ='Key Inputs'!$D$9 -> 1302 | B29: School Business Administrator 8 (If needed) | C29: ='Key Inputs'!$G$7 -> Allentown Borough, Monmouth County
A30: ='Key Inputs'!$D$9 -> 1302 | B30: School Business Administrator 9 (If needed) | C30: ='Key Inputs'!$G$7 -> Allentown Borough, Monmouth County
A31: ='Key Inputs'!$D$9 -> 1302 | B31: School Business Administrator 10 (If needed) | C31: ='Key Inputs'!$G$7 -> Allentown Borough, Monmouth County
A32: ='Key Inputs'!$D$9 -> 1302 | B32: School Business Administrator 11 (If needed) | C32: ='Key Inputs'!$G$7 -> Allentown Borough, Monmouth County
A33: ='Key Inputs'!$D$9 -> 1302 | B33: School Business Administrator 12 (If needed) | C33: ='Key Inputs'!$G$7 -> Allentown Borough, Monmouth County
A34: ='Key Inputs'!$D$9 -> 1302 | B34: School Business Administrator 13 (If needed) | C34: ='Key Inputs'!$G$7 -> Allentown Borough, Monmouth County
B39: Current Mayors List 2025
B40: NJ Mayors Directory | NJOIT Open Data Center
